Workbook

Sheet B
B5: =B9='C'!F1 -> TRUE | C5: الصــــــف | D5: العاشر العام
A8: م | B8: المادة | C8: التقويم | D8: الامتحان | E8: الفصل | F8: الفرق بين التقويم والامتحان
A9: 1 | B9: اللغة العربية | C9: 77 | D9: 61 | E9: 70 | F9: =C9-D9 -> 16
A10: 2 | B10: التربية الإسلامية | C10: 85 | D10: 55 | E10: 70 | F10: =C10-D10 -> 30
A11: 3 | B11: English | C11: 74 | D11: 39 | E11: 59 | F11: 35
A12: 4 | B12: الرياضيات | C12: 86 | D12: 40 | E12: 63 | F12: 46
A13: 5 | B13: Math | C13: 86 | D13: 40 | E13: 63 | F13: 46
A14: 6 | B14: الكيمياء | C14: 86 | D14: 40 | E14: 63 | F14: 46
A15: 7 | B15: الفيزياء | C15: 82 | D15: 42 | E15: 58 | F15: 40
A16: 8 | B16: الاحياء | C16: 80 | D16: 37 | E16: 60 | F16: 43
A17: 9 | B17: Chemistry | C17: 80 | D17: 37 | E17: 60 | F17: 43
A18: 10 | B18: Physics | C18: 80 | D18: 37 | E18: 60 | F18: 43
A19: 11 | B19: Biology | C19: 80 | D19: 37 | E19: 60 | F19: 43
A20: 12 | B20: العلوم | C20: 80 | D20: 37 | E20: 60 | F20: 43
A21: 13 | B21: الدراسات الاجتماعية | C21: 84 | D21: 74 | E21: 79 | F21: 10

Sheet A
A1: الصف | B1: التربية الإسلامية | E1: اللغة العربية | H1: English | K1: الرياضيات | N1: Math | Q1: الكيمياء | T1: Chemistry | W1: الفيزياء | Z1: Physics | AC1: الأحياء | AF1: Biology | AI1: العلوم | AL1: الدراسات الاجتماعية
B2: التقويم | C2: الامتحان | D2: الفصل | E2: التقويم | F2: الامتحان | G2: الفصل | H2: التقويم | I2: الامتحان | J2: الفصل | K2: التقويم | L2: الامتحان | M2: الفصل | N2: التقويم | O2: الامتحان | P2: الفصل | Q2: التقويم | R2: الامتحان | S2: الفصل | T2: التقويم | U2: الامتحان | V2: الفصل | W2: التقويم | X2: الامتحان | Y2: الفصل | Z2: التقويم | AA2: الامتحان | AB2: الفصل | AC2: التقويم | AD2: الامتحان | AE2: الفصل | AF2: التقويم | AG2: الامتحان | AH2: الفصل | AI2: التقويم | AJ2: الامتحان | AK2: الفصل | AL2: التقويم | AM2: الامتحان | AN2: الفصل
A3: التاسع العام | B3: =IFERROR(ROUND(AVERAGEIF('C'!$B$3:$B$353,$A3,'C'!C$3:C$353),0),"") -> 84 | C3: =AVERAGE('C'!D3:D51) -> 45.3877551 | D3: =AVERAGE('C'!E3:E51) -> 65.59897959 | E3: =AVERAGE('C'!F3:F51) -> 78.71428571 | F3: =AVERAGE('C'!G3:G51) -> 50.59183673 | G3: =AVERAGE('C'!H3:H51) -> 65.18081633 | H3: =AVERAGE('C'!I3:I51) -> 70.6122449 | I3: =AVERAGE('C'!J3:J51) -> 50.46938776 | J3: =AVERAGE('C'!K3:K51) -> 63.75244898 | K3: =AVERAGE('C'!L3:L51) -> 68.93877551 | L3: =AVERAGE('C'!M3:M51) -> 34.6875 | M3: =AVERAGE('C'!N3:N51) -> 56.03041667 | N3: =AVERAGE('C'!O3:O51) ->  | O3: =AVERAGE('C'!P3:P51) ->  | P3: =AVERAGE('C'!Q3:Q51) ->  | Q3: =AVERAGE('C'!R3:R51) ->  | R3: =AVERAGE('C'!S3:S51) ->  | S3: =AVERAGE('C'!T3:T51) ->  | T3: =AVERAGE('C'!U3:U51) ->  | U3: =AVERAGE('C'!V3:V51) ->  | V3: =AVERAGE('C'!W3:W51) ->  | W3: =AVERAGE('C'!X3:X51) ->  | X3: =AVERAGE('C'!Y3:Y51) ->  | Y3: =AVERAGE('C'!Z3:Z51) ->  | Z3: =AVERAGE('C'!AA3:AA51) ->  | AA3: =AVERAGE('C'!AB3:AB51) ->  | AB3: =AVERAGE('C'!AC3:AC51) ->  | AC3: =AVERAGE('C'!AD3:AD51) ->  | AD3: =AVERAGE('C'!AE3:AE51) ->  | AE3: =AVERAGE('C'!AF3:AF51) ->  | AF3: =AVERAGE('C'!AG3:AG51) ->  | AG3: =AVERAGE('C'!AH3:AH51) ->  | AH3: =AVERAGE('C'!AI3:AI51) ->  | AI3: =AVERAGE('C'!AJ3:AJ51) -> 82.69387755 | AJ3: =AVERAGE('C'!AK3:AK51) -> 48.6122449 | AK3: =AVERAGE('C'!AL3:AL51) -> 62.38938776 | AL3: =AVERAGE('C'!AM3:AM51) -> 79.04081633 | AM3: =AVERAGE('C'!AN3:AN51) -> 81.2244898 | AN3: =AVERAGE('C'!AO3:AO51) -> 82.07346939
A4: التاسع المتقدم | B4: =IFERROR(ROUND(AVERAGEIF('C'!$B$3:$B$353,$A4,'C'!C$3:C$353),0),"") -> 89 | C4: =AVERAGE('C'!D52:D74) -> 47.81818182 | D4: =AVERAGE('C'!E52:E74) -> 67.34545455 | E4: =AVERAGE('C'!F52:F74) -> 88.68181818 | F4: =AVERAGE('C'!G52:G74) -> 57.68181818 | G4: =AVERAGE('C'!H52:H74) -> 71.14454545 | H4: =AVERAGE('C'!I52:I74) -> 78.81818182 | I4: =AVERAGE('C'!J52:J74) -> 46.77272727 | J4: =AVERAGE('C'!K52:K74) -> 64.43863636 | K4: =AVERAGE('C'!L52:L74) -> 95.77272727 | L4: =AVERAGE('C'!M52:M74) -> 32.04545455 | M4: =AVERAGE('C'!N52:N74) -> 60.57636364 | N4: =AVERAGE('C'!O52:O74) -> 95.77272727 | O4: =AVERAGE('C'!P52:P74) -> 32.04545455 | P4: =AVERAGE('C'!Q52:Q74) -> 60.57636364 | Q4: =AVERAGE('C'!R52:R74) ->  | R4: =AVERAGE('C'!S52:S74) ->  | S4: =AVERAGE('C'!T52:T74) ->  | T4: =AVERAGE('C'!U52:U74) ->  | U4: =AVERAGE('C'!V52:V74) ->  | V4: =AVERAGE('C'!W52:W74) ->  | W4: =AVERAGE('C'!X52:X74) ->  | X4: =AVERAGE('C'!Y52:Y74) ->  | Y4: =AVERAGE('C'!Z52:Z74) ->  | Z4: =AVERAGE('C'!AA52:AA74) -> 85.90909091 | AA4: =AVERAGE('C'!AB52:AB74) -> 31.13636364 | AB4: =AVERAGE('C'!AC52:AC74) -> 58.14454545 | AC4: =AVERAGE('C'!AD52:AD74) ->  | AD4: =AVERAGE('C'!AE52:AE74) ->  | AE4: =AVERAGE('C'!AF52:AF74) ->  | AF4: =AVERAGE('C'!AG52:AG74) -> 89.95454545 | AG4: =AVERAGE('C'!AH52:AH74) -> 41.81818182 | AH4: =AVERAGE('C'!AI52:AI74) -> 63.36636364 | AI4: =AVERAGE('C'!AJ52:AJ74) ->  | AJ4: =AVERAGE('C'!AK52:AK74) ->  | AK4: =AVERAGE('C'!AL52:AL74) ->  | AL4: =AVERAGE('C'!AM52:AM74) -> 90.63636364 | AM4: =AVERAGE('C'!AN52:AN74) -> 91.13636364 | AN4: =AVERAGE('C'!AO52:AO74) -> 90.96954545 | AO4: 73.18391304
A5: العاشر العام | B5: =IFERROR(ROUND(AVERAGEIF('C'!$B$3:$B$353,$A5,'C'!C$3:C$353),0),"") -> 85 | C5: =AVERAGE('C'!D75:D127) -> 55.16981132 | D5: =AVERAGE('C'!E75:E127) -> 69.59132075 | E5: =AVERAGE('C'!F75:F127) -> 76.79245283 | F5: =AVERAGE('C'!G75:G127) -> 61.41509434 | G5: =AVERAGE('C'!H75:H127) -> 69.75773585 | H5: =AVERAGE('C'!I75:I127) -> 73.71698113 | I5: =AVERAGE('C'!J75:J127) -> 39.41509434 | J5: =AVERAGE('C'!K75:K127) -> 59.48698113 | K5: =AVERAGE('C'!L75:L127) -> 86.13207547 | L5: =AVERAGE('C'!M75:M127) -> 40.47169811 | M5: =AVERAGE('C'!N75:N127) -> 62.51415094 | N5: =AVERAGE('C'!O75:O127) ->  | O5: =AVERAGE('C'!P75:P127) ->  | P5: =AVERAGE('C'!Q75:Q127) ->  | Q5: =AVERAGE('C'!R75:R127) ->  | R5: =AVERAGE('C'!S75:S127) ->  | S5: =AVERAGE('C'!T75:T127) ->  | T5: =AVERAGE('C'!U75:U127) ->  | U5: =AVERAGE('C'!V75:V127) ->  | V5: =AVERAGE('C'!W75:W127) ->  | W5: =AVERAGE('C'!X75:X127) -> 82.45283019 | X5: =AVERAGE('C'!Y75:Y127) -> 42.0754717 | Y5: =AVERAGE('C'!Z75:Z127) -> 58.47716981 | Z5: =AVERAGE('C'!AA75:AA127) ->  | AA5: =AVERAGE('C'!AB75:AB127) ->  | AB5: =AVERAGE('C'!AC75:AC127) ->  | AC5: =AVERAGE('C'!AD75:AD127) -> 80.18867925 | AD5: =AVERAGE('C'!AE75:AE127) -> 37.45283019 | AE5: =AVERAGE('C'!AF75:AF127) -> 59.53283019 | AF5: =AVERAGE('C'!AG75:AG127) ->  | AG5: =AVERAGE('C'!AH75:AH127) ->  | AH5: =AVERAGE('C'!AI75:AI127) ->  | AI5: =AVERAGE('C'!AJ75:AJ127) ->  | AJ5: =AVERAGE('C'!AK75:AK127) ->  | AK5: =AVERAGE('C'!AL75:AL127) ->  | AL5: =AVERAGE('C'!AM75:AM127) -> 83.69811321 | AM5: =AVERAGE('C'!AN75:AN127) -> 74.33962264 | AN5: =AVERAGE('C'!AO75:AO127) -> 79.46
A6: العاشر التطبيقي | B6: =IFERROR(ROUND(AVERAGEIF('C'!$B$3:$B$353,$A6,'C'!C$3:C$353),0),"") -> 81 | C6: =AVERAGE('C'!D128:D137) -> 44.4 | D6: =AVERAGE('C'!E128:E137) -> 65.366 | E6: =AVERAGE('C'!F128:F137) -> 81.6 | F6: =AVERAGE('C'!G128:G137) -> 36.2 | G6: =AVERAGE('C'!H128:H137) -> 59.667 | H6: =AVERAGE('C'!I128:I137) -> 83.6 | I6: =AVERAGE('C'!J128:J137) -> 18.5 | J6: =AVERAGE('C'!K128:K137) -> 52.164 | K6: =AVERAGE('C'!L128:L137) -> 64.6 | L6: =AVERAGE('C'!M128:M137) -> 32 | M6: =AVERAGE('C'!N128:N137) -> 66.168 | N6: =AVERAGE('C'!O128:O137) ->  | O6: =AVERAGE('C'!P128:P137) ->  | P6: =AVERAGE('C'!Q128:Q137) ->  | Q6: =AVERAGE('C'!R128:R137) ->  | R6: =AVERAGE('C'!S128:S137) ->  | S6: =AVERAGE('C'!T128:T137) ->  | T6: =AVERAGE('C'!U128:U137) ->  | U6: =AVERAGE('C'!V128:V137) ->  | V6: =AVERAGE('C'!W128:W137) ->  | W6: =AVERAGE('C'!X128:X137) ->  | X6: =AVERAGE('C'!Y128:Y137) ->  | Y6: =AVERAGE('C'!Z128:Z137) ->  | Z6: =AVERAGE('C'!AA128:AA137) ->  | AA6: =AVERAGE('C'!AB128:AB137) ->  | AB6: =AVERAGE('C'!AC128:AC137) ->  | AC6: =AVERAGE('C'!AD128:AD137) ->  | AD6: =AVERAGE('C'!AE128:AE137) ->  | AE6: =AVERAGE('C'!AF128:AF137) ->  | AF6: =AVERAGE('C'!AG128:AG137) ->  | AG6: =AVERAGE('C'!AH128:AH137) ->  | AH6: =AVERAGE('C'!AI128:AI137) ->  | AI6: =AVERAGE('C'!AJ128:AJ137) -> 77 | AJ6: =AVERAGE('C'!AK128:AK137) -> 24.5 | AK6: =AVERAGE('C'!AL128:AL137) -> 63.102 | AL6: =AVERAGE('C'!AM128:AM137) -> 81 | AM6: =AVERAGE('C'!AN128:AN137) -> 61 | AN6: =AVERAGE('C'!AO128:AO137) -> 80.666
A7: العاشر الطيران | B7: =IFERROR(ROUND(AVERAGEIF('C'!$B$3:$B$353,$A7,'C'!C$3:C$353),0),"") -> 
A8: العاشر المتقدم | B8: =IFERROR(ROUND(AVERAGEIF('C'!$B$3:$B$353,$A8,'C'!C$3:C$353),0),"") -> 89 | C8: =AVERAGE('C'!D52:D74) -> 47.81818182 | D8: =AVERAGE('C'!E52:E74) -> 67.34545455 | E8: =AVERAGE('C'!F52:F74) -> 88.68181818 | F8: =AVERAGE('C'!G52:G74) -> 57.68181818 | G8: =AVERAGE('C'!H52:H74) -> 71.14454545 | H8: =AVERAGE('C'!I52:I74) -> 78.81818182 | I8: =AVERAGE('C'!J52:J74) -> 46.77272727 | J8: =AVERAGE('C'!K52:K74) -> 64.43863636 | K8: =AVERAGE('C'!L52:L74) -> 95.77272727 | L8: =AVERAGE('C'!M52:M74) -> 32.04545455 | M8: =AVERAGE('C'!N52:N74) -> 60.57636364 | N8: =AVERAGE('C'!O52:O74) -> 95.77272727 | O8: =AVERAGE('C'!P52:P74) -> 32.04545455 | P8: =AVERAGE('C'!Q52:Q74) -> 60.57636364 | Q8: =AVERAGE('C'!R52:R74) ->  | R8: =AVERAGE('C'!S52:S74) ->  | S8: =AVERAGE('C'!T52:T74) ->  | T8: =AVERAGE('C'!U52:U74) ->  | U8: =AVERAGE('C'!V52:V74) ->  | V8: =AVERAGE('C'!W52:W74) ->  | W8: =AVERAGE('C'!X52:X74) ->  | X8: =AVERAGE('C'!Y52:Y74) ->  | Y8: =AVERAGE('C'!Z52:Z74) ->  | Z8: =AVERAGE('C'!AA52:AA74) -> 85.90909091 | AA8: =AVERAGE('C'!AB52:AB74) -> 31.13636364 | AB8: =AVERAGE('C'!AC52:AC74) -> 58.14454545 | AC8: =AVERAGE('C'!AD52:AD74) ->  | AD8: =AVERAGE('C'!AE52:AE74) ->  | AE8: =AVERAGE('C'!AF52:AF74) ->  | AF8: =AVERAGE('C'!AG52:AG74) -> 89.95454545 | AG8: =AVERAGE('C'!AH52:AH74) -> 41.81818182 | AH8: =AVERAGE('C'!AI52:AI74) -> 63.36636364 | AI8: =AVERAGE('C'!AJ52:AJ74) ->  | AJ8: =AVERAGE('C'!AK52:AK74) ->  | AK8: =AVERAGE('C'!AL52:AL74) ->  | AL8: =AVERAGE('C'!AM52:AM74) -> 90.63636364 | AM8: =AVERAGE('C'!AN52:AN74) -> 91.13636364 | AN8: =AVERAGE('C'!AO52:AO74) -> 90.96954545
A9: الحادي عشر العام | B9: =IFERROR(ROUND(AVERAGEIF('C'!$B$3:$B$353,$A9,'C'!C$3:C$353),0),"") -> 82
A10: الحادي عشر التطبيقي | B10: =IFERROR(ROUND(AVERAGEIF('C'!$B$3:$B$353,$A10,'C'!C$3:C$353),0),"") -> 76
A11: الحادي عشر المتقدم | B11: =IFERROR(ROUND(AVERAGEIF('C'!$B$3:$B$353,$A11,'C'!C$3:C$353),0),"") -> 91
A12: الثاني عشر العام | B12: =IFERROR(ROUND(AVERAGEIF('C'!$B$3:$B$353,$A12,'C'!C$3:C$353),0),"") -> 83
A13: الثاني عشر التطبيقي | B13: =IFERROR(ROUND(AVERAGEIF('C'!$B$3:$B$353,$A13,'C'!C$3:C$353),0),"") -> 74
A14: الثاني عشر المتقدم | B14: =IFERROR(ROUND(AVERAGEIF('C'!$B$3:$B$353,$A14,'C'!C$3:C$353),0),"") -> 92
B16: هذا الشيت يعرض متوسط درجات الصف لكل مادة من الشيت C
B17: نريد عرض متوسط الدرجات لكل صف في الشيت B مباشرتا من الشيت C والاستغناء عن الشيت A
B20: واذا لم نتمكن من إيجاد المتوسط مباشرتا من الشيت C وعرضها بالشيت B ولا بد من وجود الشيت A فاريد معادلة لايجاد المتوسط لكل مادة حسب الصف بمعنى معادلة تبحث عن درجات التقويم مثلا للصف التاسع العام وعرضها هنا بالشيت مع عدم التأثر اذا زادت عدد الشعب او قلت

Sheet C
A1: الصف | C1: التربية الإسلامية | F1: اللغة العربية | I1: English | L1: الرياضيات | O1: Math | R1: الكيمياء | U1: Chemistry | X1: الفيزياء | AA1: Physics | AD1: الأحياء | AG1: Biology | AJ1: العلوم | AM1: الدراسات الاجتماعية
B2: الاسم | C2: التقويم | D2: الامتحان | E2: الفصل | F2: التقويم | G2: الامتحان | H2: الفصل | I2: التقويم | J2: الامتحان | K2: الفصل | L2: التقويم | M2: الامتحان | N2: الفصل | O2: التقويم | P2: الامتحان | Q2: الفصل | R2: التقويم | S2: الامتحان | T2: الفصل | U2: التقويم | V2: الامتحان | W2: الفصل | X2: التقويم | Y2: الامتحان | Z2: الفصل | AA2: التقويم | AB2: الامتحان | AC2: الفصل | AD2: التقويم | AE2: الامتحان | AF2: الفصل | AG2: التقويم | AH2: الامتحان | AI2: الفصل | AJ2: التقويم | AK2: الامتحان | AL2: الفصل | AM2: التقويم | AN2: الامتحان | AO2: الفصل
A3: 9G1 | B3: التاسع العام | C3: 84 | D3: 52 | E3: 66.46 | F3: 79 | G3: 54 | H3: 66.27 | I3: 71 | J3: 56 | K3: 65.55 | L3: 70 | M3: 45 | N3: 61.65 | AJ3: 81 | AK3: 62 | AL3: 61.82 | AM3: 88 | AN3: 95 | AO3: 92.67 | AP3: 96.67
A4: 9G1 | B4: التاسع العام | C4: 81 | D4: 40 | E4: 61.82 | F4: 75 | G4: 63 | H4: 68.82 | I4: 69 | J4: 51 | K4: 63.47 | L4: 62 | M4: 40 | N4: 59.33 | AJ4: 70 | AK4: 50 | AL4: 50 | AM4: 86 | AN4: 100 | AO4: 95.33 | AP4: 98
A5: 9G1 | B5: التاسع العام | C5: 85 | D5: 44 | E5: 63.8 | F5: 79 | G5: 51 | H5: 65.18 | I5: 73 | J5: 49 | K5: 63.47 | L5: 80 | M5: 15 | N5: 49.1 | AJ5: 77 | AK5: 61 | AL5: 61.15 | AM5: 82 | AN5: 85 | AO5: 84 | AP5: 48.83
A6: 9G1 | B6: التاسع العام | C6: 88 | D6: 64 | E6: 72 | F6: 99 | G6: 74 | H6: 82.33 | I6: 86 | J6: 60 | K6: 69.73 | L6: 85 | M6: 70 | N6: 75 | AJ6: 94 | AK6: 71 | AL6: 71.33 | AM6: 88 | AN6: 100 | AO6: 96 | AP6: 97.33
A7: 9G1 | B7: التاسع العام | C7: 88 | D7: 88 | E7: 88 | F7: 90 | G7: 70 | H7: 76.67 | I7: 70 | J7: 63 | K7: 67.91 | L7: 80 | M7: 70 | N7: 73.33 | AJ7: 90 | AK7: 80 | AL7: 80 | AM7: 70 | AN7: 90 | AO7: 83.33 | AP7: 97.33
A8: 9G1 | B8: التاسع العام | C8: 81 | D8: 44 | E8: 63.13 | F8: 69 | G8: 58 | H8: 65.91 | I8: 75 | J8: 28 | K8: 53.67 | L8: 64 | M8: 30 | N8: 51.33 | AJ8: 70 | AK8: 57 | AL8: 56.67 | AM8: 70 | AN8: 85 | AO8: 80 | AP8: 96.2
A9: 9G1 | B9: التاسع العام | C9: 77 | D9: 40 | E9: 61.15 | F9: 60 | G9: 39 | H9: 56 | I9: 58 | J9: 49 | K9: 60.99 | L9: 50 | M9: 20 | N9: 47.44 | AJ9: 78 | AK9: 50 | AL9: 49.76 | AM9: 60 | AN9: 85 | AO9: 76.67 | AP9: 96.67
A10: 9G1 | B10: التاسع العام | C10: 83 | D10: 56 | E10: 67.73 | F10: 81 | G10: 67 | H10: 71.67 | I10: 68 | J10: 28 | K10: 51.33 | L10: 70 | M10: 50 | N10: 63.3 | AJ10: 86 | AK10: 66 | AL10: 66.09 | AM10: 70 | AN10: 80 | AO10: 76.67 | AP10: 100
A11: 9G1 | B11: التاسع العام | C11: 82 | D11: 60 | E11: 69 | F11: 73 | G11: 81 | H11: 78.33 | I11: 67 | J11: 63 | K11: 67.36 | L11: 70 | M11: 40 | N11: 60 | AJ11: 77 | AK11: 61 | AL11: 61.15 | AM11: 90 | AN11: 90 | AO11: 90 | AP11: 96.67
A12: 9G1 | B12: التاسع العام | C12: 81 | D12: 52 | E12: 65.91 | F12: 71 | G12: 55 | H12: 65.18 | I12: 69 | J12: 33 | K12: 55 | L12: 78 | M12: 25 | N12: 52.67 | AJ12: 93 | AK12: 69 | AL12: 69.19 | AM12: 88 | AN12: 85 | AO12: 86 | AP12: 49.17
A13: 9G1 | B13: التاسع العام | C13: 86 | D13: 28 | E13: 60 | F13: 93 | G13: 12 | H13: 49.68 | I13: 94 | J13: 65 | K13: 74.67 | L13: 90 | M13: 35 | N13: 61.65 | AJ13: 85 | AK13: 62 | AL13: 62.48 | AM13: 85 | AN13: 90 | AO13: 88.33 | AP13: 97.33
A14: 9G1 | B14: التاسع العام | C14: 88 | D14: 56 | E14: 68.64 | F14: 77 | G14: 66 | H14: 70.28 | I14: 58 | J14: 40 | K14: 56 | L14: 86 | M14: 10 | N14: 48.77 | AJ14: 60 | AK14: 49 | AL14: 49.1 | AM14: 60 | AN14: 85 | AO14: 76.67 | AP14: 96.67
A15: 9G1 | B15: التاسع العام | C15: 80 | D15: 32 | E15: 60 | F15: 60 | G15: 63 | H15: 66.09 | I15: 74 | J15: 30 | K15: 54.67 | L15: 74 | M15: 40 | N15: 60.66 | AJ15: 60 | AK15: 57 | AL15: 56.67 | AM15: 92 | AN15: 95 | AO15: 94 | AP15: 49.17
A16: 9G1 | B16: التاسع العام | C16: 88 | D16: 36 | E16: 61.65 | F16: 82 | G16: 61 | H16: 69.37 | I16: 84 | J16: 58 | K16: 68.64 | L16: 88 | M16: 55 | N16: 68.28 | AJ16: 97 | AK16: 66 | AL16: 66.27 | AM16: 80 | AN16: 90 | AO16: 86.67 | AP16: 49.83
A17: 9G1 | B17: التاسع العام | C17: 75 | D17: 12 | E17: 60 | F17: 35 | G17: 18 | H17: 45.87 | I17: 54 | J17: 19 | K17: 47.61 | L17: 40 | M17: 25 | N17: 47.44 | AJ17: 60 | AK17: 49 | AL17: 49.1 | AM17: 60 | AN17: 20 | AO17: 60 | AP17: 98
A18: 9G1 | B18: التاسع العام | C18: 78 | D18: 52 | E18: 65.37 | F18: 35 | G18: 46 | H18: 52.33 | I18: 47 | J18: 67 | K18: 65.18 | L18: 68 | M18: 30 | N18: 52.67 | AJ18: 62 | AK18: 57 | AL18: 57.33 | AM18: 60 | AN18: 95 | AO18: 83.33 | AP18: 49.83
A19: 9G2 | B19: التاسع العام | C19: 81 | D19: 76 | E19: 77.67 | F19: 76 | G19: 60 | H19: 67.91 | I19: 82 | J19: 77 | K19: 78.67 | L19: 60 | M19: 35 | N19: 53.33 | AJ19: 86 | AK19: 40 | AL19: 62.64 | AM19: 90 | AN19: 95 | AO19: 93.33
A20: 9G2 | B20: التاسع العام | C20: 82 | D20: 36 | E20: 60.66 | F20: 84 | G20: 47 | H20: 64.62 | I20: 71 | J20: 19 | K20: 49.01 | L20: 75 | M20: 20 | N20: 49.51 | AJ20: 88 | AK20: 55 | AL20: 68.28 | AM20: 90 | AN20: 80 | AO20: 83.33
A21: 9G2 | B21: التاسع العام | C21: 90 | D21: 36 | E21: 61.98 | F21: 86 | G21: 42 | H21: 63.3 | I21: 72 | J21: 56 | K21: 65.73 | L21: 75 | M21: 20 | N21: 49.51 | AJ21: 85 | AK21: 35 | AL21: 60.83 | AM21: 70 | AN21: 90 | AO21: 83.33
A22: 9G2 | B22: التاسع العام | C22: 89 | D22: 44 | E22: 64.46 | F22: 81 | G22: 44 | H22: 63.13 | I22: 94 | J22: 74 | K22: 80.67 | L22: 70 | M22: 25 | N22: 50 | AJ22: 85 | AK22: 35 | AL22: 60.83 | AM22: 88 | AN22: 70 | AO22: 76
A23: 9G2 | B23: التاسع العام | C23: 88 | D23: 12 | E23: 60 | F23: 90 | G23: 38 | H23: 62.64 | I23: 75 | J23: 58 | K23: 67 | L23: 75 | M23: 55 | N23: 65.91 | AJ23: 95 | AK23: 65 | AL23: 75 | AM23: 86 | AN23: 95 | AO23: 92
A24: 9G2 | B24: التاسع العام | C24: 82 | D24: 24 | E24: 60 | F24: 88 | G24: 65 | H24: 72.67 | I24: 70 | J24: 67 | K24: 69.37 | L24: 64 | M24: 45 | N24: 60.66 | AJ24: 85 | AK24: 30 | AL24: 58.33 | AM24: 84 | AN24: 85 | AO24: 84.67
A25: 9G2 | B25: التاسع العام | C25: 85 | D25: 44 | E25: 63.8 | F25: 70 | G25: 69 | H25: 70.09 | I25: 75 | J25: 42 | K25: 61.49 | L25: 66 | M25: 30 | N25: 52 | AJ25: 87 | AK25: 30 | AL25: 59 | AM25: 88 | AN25: 80 | AO25: 82.67 | AP25: 0
A26: 9G2 | B26: التاسع العام | C26: 95 | D26: 72 | E26: 79.67 | F26: 99 | G26: 78 | H26: 85 | I26: 84 | J26: 72 | K26: 76 | L26: 85 | M26: 60 | N26: 69.55 | AJ26: 85 | AK26: 30 | AL26: 67.73 | AM26: 88 | AN26: 95 | AO26: 92.67 | AP26: 50.83
A27: 9G2 | B27: التاسع العام | C27: 83 | D27: 40 | E27: 62.14 | F27: 66 | G27: 43 | H27: 60.33 | I27: 60 | J27: 51 | K27: 61.98 | L27: 60 | M27: 35 | N27: 53.33 | AJ27: 87 | AK27: 35 | AL27: 61.15 | AM27: 60 | AN27: 75 | AO27: 70.46 | AP27: 50.17
A28: 9G2 | B28: التاسع العام | C28: 85 | D28: 68 | E28: 73.67 | F28: 87 | G28: 72 | H28: 77 | I28: 78 | J28: 51 | K28: 65 | L28: 67 | M28: 50 | N28: 62.81 | AJ28: 88 | AK28: 35 | AL28: 61.32 | AM28: 88 | AN28: 95 | AO28: 92.67 | AP28: 48.83
A29: 9G2 | B29: التاسع العام | C29: 90 | D29: 44 | E29: 64.62 | F29: 89 | G29: 56 | H29: 68.82 | I29: 74 | J29: 42 | K29: 61.32 | L29: 72 | M29: 30 | N29: 54 | AJ29: 87 | AK29: 50 | AL29: 66.27 | AM29: 65 | AN29: 95 | AO29: 85 | AP29: 99.33
A30: 9G2 | B30: التاسع العام | C30: 80 | D30: 12 | E30: 60 | F30: 65 | G30: 33 | H30: 53.67 | I30: 53 | J30: 19 | K30: 47.53 | L30: 60 | M30: 25 | N30: 49.1 | AJ30: 86 | AK30: 45 | AL30: 64.29 | AM30: 60 | AN30: 60 | AO30: 65 | AP30: 0
A31: 9G2 | B31: التاسع العام | C31: 85 | D31: 32 | E31: 60 | F31: 69 | G31: 28 | H31: 51.67 | I31: 66 | J31: 19 | K31: 48.6 | L31: 74 | M31: 30 | N31: 54.67 | AJ31: 85 | AK31: 35 | AL31: 51.67 | AM31: 74 | AN31: 65 | AO31: 69.37 | AP31: 2.67
A32: 9G2 | B32: التاسع العام | C32: 88 | D32: 40 | E32: 62.97 | F32: 87 | G32: 24 | H32: 55 | I32: 81 | J32: 65 | K32: 70.64 | L32: 85 | M32: 15 | N32: 49.51 | AJ32: 85 | AK32: 35 | AL32: 60.83 | AM32: 75 | AN32: 75 | AO32: 75 | AP32: 1
A33: 9G2 | B33: التاسع العام | C33: 88 | D33: 52 | E33: 67.18 | F33: 100 | G33: 42 | H33: 65.73 | I33: 83 | J33: 56 | K33: 67.73 | L33: 78 | M33: 35 | N33: 59.33 | AJ33: 93 | AK33: 55 | AL33: 69.19 | AM33: 86 | AN33: 85 | AO33: 85.33 | AP33: 2.33
A34: 9G2 | B34: التاسع العام | C34: 85 | D34: 52 | E34: 66.64 | F34: 93 | G34: 70 | H34: 77.67 | I34: 95 | J34: 86 | K34: 89 | L34: 80 | M34: 35 | N34: 60 | AJ34: 95 | AK34: 60 | AL34: 71.67 | AM34: 72 | AN34: 90 | AO34: 84 | AP34: 2.67
A35: 9G2 | B35: التاسع العام | C35: 95 | D35: 72 | E35: 79.67 | F35: 91 | G35: 82 | H35: 85 | I35: 74 | J35: 70 | K35: 71.33 | L35: 80 | M35: 30 | N35: 56.67 | AJ35: 87 | AK35: 55 | AL35: 68.1 | AM35: 90 | AN35: 95 | AO35: 93.33 | AP35: 0
A36: 9G3 | B36: التاسع العام | C36: 79 | D36: 40 | E36: 61.49 | F36: 87 | G36: 50 | H36: 66.27 | I36: 60 | J36: 47 | K36: 60.66 | L36: 60 | M36: 30 | N36: 50 | AJ36: 80 | AK36: 35 | AL36: 60 | AM36: 70 | AN36: 75 | AO36: 73.33 | AP36: 88.73
A37: 9G3 | B37: التاسع العام | C37: 90 | D37: 56 | E37: 69 | F37: 100 | G37: 42 | H37: 65.73 | I37: 81 | J37: 53 | K37: 66.27 | L37: 70 | M37: 35 | N37: 56.67 | AJ37: 93 | AK37: 45 | AL37: 65.55 | AM37: 80 | AN37: 95 | AO37: 90 | AP37: 99.33
A38: 9G3 | B38: التاسع العام | C38: 89 | D38: 36 | E38: 61.82 | F38: 73 | G38: 30 | H38: 54.33 | I38: 63 | J38: 60 | K38: 65.55 | L38: 70 | M38: 35 | N38: 56.67 | AJ38: 83 | AK38: 50 | AL38: 65.55 | AM38: 90 | AN38: 95 | AO38: 93.33 | AP38: 99
A39: 9G3 | B39: التاسع العام | C39: 88 | D39: 32 | E39: 60.33 | F39: 90 | G39: 40 | H39: 63.3 | I39: 90 | J39: 72 | K39: 78 | L39: 72 | M39: 30 | N39: 54 | AJ39: 88 | AK39: 55 | AL39: 68.28 | AM39: 86 | AN39: 95 | AO39: 92 | AP39: 81
A40: 9G3 | B40: التاسع العام | C40: 84 | D40: 48 | E40: 65 | F40: 89 | G40: 35 | H40: 61.49 | I40: 90 | J40: 81 | K40: 84 | L40: 75 | M40: 50 | N40: 64.12 | AJ40: 84 | AK40: 55 | AL40: 67.55 | AM40: 86 | AN40: 100 | AO40: 95.33 | AP40: 99.33
A41: 9G3 | B41: التاسع العام | C41: 88 | D41: 24 | E41: 60 | F41: 87 | G41: 56 | H41: 68.46 | I41: 54 | J41: 16 | K41: 47.11 | L41: 60 | M41: 25 | N41: 49.1 | AJ41: 82 | AK41: 25 | AL41: 54 | AM41: 86 | AN41: 10 | AO41: 60 | AP41: 97.33
A42: 9G3 | B42: التاسع العام | C42: 86 | D42: 36 | E42: 61.32 | F42: 92 | G42: 52 | H42: 67.91 | I42: 70 | J42: 56 | K42: 65.37 | L42: 60 | M42: 55 | N42: 63.3 | AJ42: 80 | AK42: 45 | AL42: 63.3 | AM42: 92 | AN42: 95 | AO42: 94 | AP42: 49.83
A43: 9G3 | B43: التاسع العام | C43: 81 | D43: 40 | E43: 61.82 | F43: 71 | G43: 38 | H43: 59 | I43: 69 | J43: 42 | K43: 60.5 | L43: 60 | M43: 25 | N43: 49.1 | AJ43: 81 | AK43: 15 | AL43: 49.18 | AM43: 86 | AN43: 60 | AO43: 69.73 | AP43: 99.33
A44: 9G3 | B44: التاسع العام | C44: 81 | D44: 32 | E44: 60 | F44: 79 | G44: 38 | H44: 60.83 | I44: 62 | J44: 49 | K44: 61.65 | L44: 60 | M44: 5 | N44: 45.79 | AJ44: 80 | AK44: 45 | AL44: 63.3 | AM44: 60 | AN44: 75 | AO44: 70.46 | AP44: 37.1
A45: 9G3 | B45: التاسع العام | C45: 82 | D45: 40 | E45: 61.98 | F45: 60 | G45: 23 | H45: 48.77 | I45: 48 | J45: 14 | K45: 48.02 | L45: 60 | M45: 60 | N45: 65 | AJ45: 82 | AK45: 65 | AL45: 70.82 | AM45: 86 | AN45: 45 | AO45: 64.29 | AP45: 99.67
A46: 9G3 | B46: التاسع العام | C46: 83 | D46: 60 | E46: 69.19 | F46: 73 | G46: 63 | H46: 68.46 | I46: 63 | J46: 49 | K46: 61.82 | L46: 60 | M46: 35 | N46: 53.33 | AJ46: 82 | AK46: 30 | AL46: 57.33 | AM46: 84 | AN46: 80 | AO46: 81.33 | AP46: 99.67
A47: 9G3 | B47: التاسع العام | C47: 85 | D47: 36 | E47: 61.15 | F47: 79 | G47: 53 | H47: 65.91 | I47: 61 | J47: 49 | K47: 61.49 | L47: 60 | M47: 30 | N47: 50 | AJ47: 81 | AK47: 30 | AL47: 57 | AM47: 90 | AN47: 80 | AO47: 83.33 | AP47: 99.33
A48: 9G3 | B48: التاسع العام | C48: 83 | D48: 48 | E48: 64.79 | F48: 82 | G48: 57 | H48: 67.91 | I48: 53 | J48: 74 | K48: 68.82 | L48: 60 | M48: 25 | N48: 49.1 | AJ48: 84 | AK48: 55 | AL48: 67.55 | AM48: 84 | AN48: 90 | AO48: 88 | AP48: 49.83
A49: 9G3 | B49: التاسع العام | C49: 82 | D49: 60 | E49: 69 | F49: 60 | G49: 26 | H49: 49.26 | I49: 47 | J49: 42 | K49: 53.67 | L49: 60 | M49: 15 | N49: 47.44 | AJ49: 79 | AK49: 60 | AL49: 68.46 | AM49: 70 | AN49: 40 | AO49: 60 | AP49: 48.5
A50: 9G3 | B50: التاسع العام | C50: 87 | D50: 88 | E50: 87.67 | F50: 79 | G50: 77 | H50: 77.67 | I50: 85 | J50: 74 | K50: 77.67 | L50: 60 | M50: 35 | N50: 53.33 | AJ50: 81 | AK50: 45 | AL50: 63.47 | AM50: 80 | AN50: 80 | AO50: 80 | AP50: 97.67
A51: 9G3 | B51: التاسع العام | C51: 71 | D51: 36 | E51: 60 | F51: 77 | G51: 28 | H51: 54.33 | I51: 60 | J51: 12 | K51: 46.95 | L51: 50 | M51: غ.م | N51: غ.م | AJ51: 83 | AK51: 35 | AL51: 60.5 | AM51: 60 | AN51: 70 | AO51: 68.64 | AP51: 99.33
A52: 9A1 | B52: التاسع المتقدم | C52: 93 | D52: 72 | E52: 79 | F52: 89 | G52: 88 | H52: 88.33 | I52: 81 | J52: 42 | K52: 62.48 | L52: 96 | M52: 25 | N52: 58.67 | O52: 96 | P52: 25 | Q52: 58.67 | AA52: 90 | AB52: 30 | AC52: 60 | AG52: 94 | AH52: 50 | AI52: 67.55 | AM52: 92 | AN52: 100 | AO52: 97.33 | AP52: 98.67
A53: 9A1 | B53: التاسع المتقدم | C53: 91 | D53: 40 | E53: 63.47 | F53: 92 | G53: 44 | H53: 65 | I53: 80 | J53: 70 | K53: 73.33 | L53: 100 | M53: 40 | N53: 65 | O53: 100 | P53: 40 | Q53: 65 | AA53: 90 | AB53: 30 | AC53: 56.67 | AG53: 93 | AH53: 60 | AI53: 71 | AM53: 92 | AN53: 100 | AO53: 97.33 | AP53: 72.07
A54: 9A1 | B54: التاسع المتقدم | C54: 86 | D54: 44 | E54: 63.96 | F54: 81 | G54: 62 | H54: 69.55 | I54: 73 | J54: 53 | K54: 64.79 | L54: 98 | M54: 40 | N54: 64.62 | O54: 98 | P54: 40 | Q54: 64.62 | AA54: 70 | AB54: 25 | AC54: 50 | AG54: 80 | AH54: 20 | AI54: 50 | AM54: 95 | AN54: 95 | AO54: 95 | AP54: 68.27
A55: 9A1 | B55: التاسع المتقدم | C55: 81 | D55: 44 | E55: 63.13 | F55: 85 | G55: 43 | H55: 63.47 | I55: 83 | J55: 47 | K55: 64.46 | L55: 90 | M55: 45 | N55: 65 | O55: 90 | P55: 45 | Q55: 65 | AA55: 95 | AB55: 30 | AC55: 60.83 | AG55: 86 | AH55: 45 | AI55: 64.29 | AM55: 94 | AN55: 85 | AO55: 88 | AP55: 98.1
A56: 9A1 | B56: التاسع المتقدم | C56: 83 | D56: 56 | E56: 67.73 | F56: 95 | G56: 74 | H56: 81 | I56: 77 | J56: 63 | K56: 69.19 | L56: 95 | M56: 40 | N56: 64.12 | O56: 95 | P56: 40 | Q56: 64.12 | AA56: 85 | AB56: 30 | AC56: 58.33 | AG56: 87 | AH56: 70 | AI56: 75.67 | AM56: 96 | AN56: 95 | AO56: 95.33 | AP56: 69.27
A57: 9A1 | B57: التاسع المتقدم | C57: 90 | D57: 48 | E57: 66.09 | F57: 96 | G57: 76 | H57: 82.67 | I57: 84 | J57: 72 | K57: 76 | L57: 100 | M57: 20 | N57: 56.67 | O57: 100 | P57: 20 | Q57: 56.67 | AA57: 70 | AB57: 15 | AC57: 48.27 | AG57: 92 | AH57: 60 | AI57: 70.82 | AM57: 94 | AN57: 95 | AO57: 94.67 | AP57: 86.7
A58: 9A1 | B58: التاسع المتقدم | C58: 94 | D58: 32 | E58: 61.32 | F58: 96 | G58: 47 | H58: 66.82 | I58: 68 | J58: 33 | K58: 54.67 | L58: 97 | M58: 15 | N58: 52.33 | O58: 97 | P58: 15 | Q58: 52.33 | AA58: 85 | AB58: 30 | AC58: 58.33 | AG58: 92 | AH58: 35 | AI58: 61.98 | AM58: 96 | AN58: 100 | AO58: 98.67 | AP58: 83.47
A59: 9A1 | B59: التاسع المتقدم | C59: 94 | D59: 52 | E59: 68.28 | F59: 94 | G59: 64 | H59: 74 | I59: 72 | J59: 35 | K59: 74 | L59: 100 | M59: 55 | N59: 70.46 | O59: 100 | P59: 55 | Q59: 70.46 | AA59: 95 | AB59: 15 | AC59: 51.67 | AG59: 97 | AH59: 70 | AI59: 79 | AM59: 90 | AN59: 90 | AO59: 90 | AP59: 60.67
A60: 9A1 | B60: التاسع المتقدم | C60: 86 | D60: 24 | E60: 60 | F60: 88 | G60: 47 | H60: 65.37 | I60: 80 | J60: 33 | K60: 58.67 | L60: 94 | M60: 35 | N60: 62.31 | O60: 94 | P60: 35 | Q60: 62.31 | AA60: 95 | AB60: 20 | AC60: 55 | AG60: 89 | AH60: 30 | AI60: 59.67 | AM60: 92 | AN60: 95 | AO60: 94 | AP60: 59.67
A61: 9A1 | B61: التاسع المتقدم | C61: 93 | D61: 52 | E61: 68.1 | F61: 98 | G61: 71 | H61: 80 | I61: 87 | J61: 67 | K61: 73.67 | L61: 94 | M61: 20 | N61: 54.67 | O61: 94 | P61: 20 | Q61: 54.67 | AA61: 90 | AB61: 20 | AC61: 53.33 | AG61: 95 | AH61: 45 | AI61: 65.91 | AM61: 98 | AN61: 95 | AO61: 96 | AP61: 75.87
A62: 9A1 | B62: التاسع المتقدم | C62: 100 | D62: 56 | E62: 70.82 | F62: 88 | G62: 59 | H62: 69.73 | I62: 78 | J62: 56 | K62: 66.82 | L62: 100 | M62: 20 | N62: 56.67 | O62: 100 | P62: 20 | Q62: 56.67 | AA62: 90 | AB62: 15 | AC62: 50 | AG62: 98 | AH62: 45 | AI62: 66.46 | AM62: 96 | AN62: 100 | AO62: 98.67 | AP62: 41.67
A63: 9A1 | B63: التاسع المتقدم | C63: 80 | D63: 32 | E63: 60 | F63: 81 | G63: 45 | H63: 63.47 | I63: 71 | J63: 19 | K63: 49.01 | L63: 93 | M63: 20 | N63: 54.33 | O63: 93 | P63: 20 | Q63: 54.33 | AA63: 70 | AB63: 35 | AC63: 56.67 | AG63: 85 | AH63: 55 | AI63: 67.73 | AM63: 85 | AN63: 90 | AO63: 88.33 | AP63: 99.67
A64: 9A1 | B64: التاسع المتقدم | C64: 96 | D64: 80 | E64: 85.33 | F64: 98 | G64: 84 | H64: 88.67 | I64: 81 | J64: 70 | K64: 73.67 | L64: 100 | M64: 65 | N64: 76.67 | O64: 100 | P64: 65 | Q64: 76.67 | AA64: 95 | AB64: 40 | AC64: 64.12 | AG64: 98 | AH64: 60 | AI64: 72.67 | AM64: 92 | AN64: 95 | AO64: 94 | AP64: 68.93
A65: 9A1 | B65: التاسع المتقدم | C65: 95 | D65: 72 | E65: 79.67 | F65: 90 | G65: 55 | H65: 68.64 | I65: 79 | J65: 42 | K65: 62.14 | L65: 97 | M65: 15 | N65: 52.33 | O65: 97 | P65: 15 | Q65: 52.33 | AA65: 95 | AB65: 35 | AC65: 62.48 | AG65: 95 | AH65: 60 | AI65: 71.67 | AM65: 88 | AN65: 95 | AO65: 92.67 | AP65: 67.93
A66: 9A1 | B66: التاسع المتقدم | C66: 83 | D66: 28 | E66: 60 | F66: 72 | G66: 28 | H66: 52.67 | I66: 81 | J66: 12 | K66: 48.68 | L66: 94 | M66: 30 | N66: 60.66 | O66: 94 | P66: 30 | Q66: 60.66 | AA66: 70 | AB66: 20 | AC66: 49.1 | AG66: 85 | AH66: 5 | AI66: 47.86 | AM66: 80 | AN66: 70 | AO66: 73.33 | AP66: 71.5
A67: 9A1 | B67: التاسع المتقدم | C67: 80 | D67: 28 | E67: 60 | F67: 60 | G67: 33 | H67: 52 | I67: 54 | J67: 21 | K67: 47.94 | L67: 100 | M67: 35 | N67: 63.3 | O67: 100 | P67: 35 | Q67: 63.3 | AA67: 70 | AB67: 50 | AC67: 63.3 | AG67: 80 | AH67: 15 | AI67: 49.1 | AM67: 80 | AN67: 90 | AO67: 86.67 | AP67: 77.77
A68: 9A1 | B68: التاسع المتقدم | C68: غ | D68: غ | E68: غ.م | F68: غ | G68: غ | H68: غ.م | I68: AE | J68: AE | K68: غ.م | L68: AE | M68: AE | N68: غ.م | O68: AE | P68: AE | Q68: غ.م | AA68: A | AB68: A | AC68: غ.م | AG68: A | AH68: AE | AI68: غ.م | AM68: غ | AN68: غ.م | AO68: غ.م | AP68: 60.33
A69: 9A1 | B69: التاسع المتقدم | C69: 94 | D69: 44 | E69: 65.37 | F69: 90 | G69: 71 | H69: 77.33 | I69: 91 | J69: 65 | K69: 73.67 | L69: 100 | M69: 40 | N69: 65 | O69: 100 | P69: 40 | Q69: 65 | AA69: 70 | AB69: 55 | AC69: 65 | AG69: 88 | AH69: 55 | AI69: 68.28 | AM69: 92 | AN69: 95 | AO69: 94 | AP69: 60.67
A70: 9A1 | B70: التاسع المتقدم | C70: 88 | D70: 72 | E70: 77.33 | F70: 98 | G70: 71 | H70: 80 | I70: 95 | J70: 77 | K70: 83 | L70: 98 | M70: 40 | N70: 64.62 | O70: 98 | P70: 40 | Q70: 64.62 | AA70: 90 | AB70: 55 | AC70: 68.64 | AG70: 85 | AH70: 55 | AI70: 67.73 | AM70: 85 | AN70: 100 | AO70: 95 | AP70: 61
A71: 9A1 | B71: التاسع المتقدم | C71: 87 | D71: 36 | E71: 61.49 | F71: 91 | G71: 28 | H71: 59 | I71: 83 | J71: 33 | K71: 59.67 | L71: 90 | M71: 15 | N71: 50 | O71: 90 | P71: 15 | Q71: 50 | AA71: 95 | AB71: 30 | AC71: 60.83 | AG71: 86 | AH71: 25 | AI71: 55.33 | AM71: 94 | AN71: 70 | AO71: 78 | AP71: 66.37
A72: 9A1 | B72: التاسع المتقدم | C72: 80 | D72: 56 | E72: 67.18 | F72: 92 | G72: 55 | H72: 69 | I72: 72 | J72: 35 | K72: 57.33 | L72: 74 | M72: 20 | N72: 49.43 | O72: 74 | P72: 20 | Q72: 49.43 | AA72: 90 | AB72: 35 | AC72: 61.65 | AG72: 79 | AH72: 25 | AI72: 53 | AM72: 85 | AN72: 75 | AO72: 78.33 | AP72: 100
A73: 9A1 | B73: التاسع المتقدم | C73: 81 | D73: 24 | E73: 60 | F73: 77 | G73: 46 | H73: 63.13 | I73: 74 | J73: 35 | K73: 58 | L73: 97 | M73: 25 | N73: 59 | O73: 97 | P73: 25 | Q73: 59 | AA73: 95 | AB73: 35 | AC73: 62.48 | AG73: 100 | AH73: 20 | AI73: 51.67 | AM73: 80 | AN73: 80 | AO73: 80 | AP73: 93.3
A74: 9A1 | B74: التاسع المتقدم | C74: 100 | D74: 60 | E74: 73.33 | F74: 100 | G74: 78 | H74: 85.33 | I74: 90 | J74: 49 | K74: 66.46 | L74: 100 | M74: 45 | N74: 66.82 | O74: 100 | P74: 45 | Q74: 66.82 | AA74: 95 | AB74: 35 | AC74: 62.48 | AG74: 95 | AH74: 15 | AI74: 56.67 | AM74: 98 | AN74: 95 | AO74: 96 | AP74: 41.33
A75: 10G1 | B75: العاشر العام | C75: 83 | D75: 76 | E75: 78.33 | F75: 89 | G75: 76 | H75: 80.33 | I75: 90 | J75: 49 | K75: 66.46 | L75: 95 | M75: 25 | N75: 58.33 | X75: 88 | Y75: 61 | Z75: 61.32 | AD75: 92 | AE75: 50 | AF75: 67.18 | AM75: 88 | AN75: 90 | AO75: 89.33 | AP75: 67.93
A76: 10G1 | B76: العاشر العام | C76: 90 | D76: 40 | E76: 63.3 | F76: 85 | G76: 34 | H76: 60.5 | I76: 85 | J76: 70 | K76: 75 | L76: 92 | M76: 40 | N76: 63.63 | X76: 80 | Y76: 47 | Z76: 47.44 | AD76: 85 | AE76: 35 | AF76: 60.83 | AM76: 90 | AN76: 65 | AO76: 73.33 | AP76: 60.33
A77: 10G1 | B77: العاشر العام | C77: 80 | D77: 64 | E77: 70.09 | F77: 65 | G77: 63 | H77: 67 | I77: 60 | J77: 19 | K77: 48.11 | L77: 80 | M77: 25 | N77: 53.33 | X77: 62 | Y77: 48 | Z77: 47.61 | AD77: 87 | AE77: 35 | AF77: 61.15 | AM77: 88 | AN77: 35 | AO77: 61.32 | AP77: 93.63
A78: 10G1 | B78: العاشر العام | C78: 82 | D78: 40 | E78: 61.98 | F78: 80 | G78: 51 | H78: 65.37 | I78: 80 | J78: 16 | K78: 49.26 | L78: 85 | M78: 45 | N78: 64.12 | X78: 60 | Y78: 53 | Z78: 53.33 | AD78: 60 | AE78: 15 | AF78: 47.44 | AM78: 90 | AN78: 90 | AO78: 90 | AP78: 94.87
A79: 10G1 | B79: العاشر العام | C79: 86 | D79: 36 | E79: 61.32 | F79: 89 | G79: 46 | H79: 65.18 | I79: 85 | J79: 44 | K79: 63.8 | L79: 90 | M79: 50 | N79: 66.82 | X79: 90 | Y79: 53 | Z79: 53.33 | AD79: 94 | AE79: 30 | AF79: 60.66 | AM79: 90 | AN79: 90 | AO79: 90 | AP79: 79.67
A80: 10G1 | B80: العاشر العام | C80: 87 | D80: 40 | E80: 62.81 | F80: 87 | G80: 66 | H80: 73 | I80: 90 | J80: 56 | K80: 69 | L80: 95 | M80: 50 | N80: 67.73 | X80: 95 | Y80: 61 | Z80: 60.83 | AD80: 94 | AE80: 40 | AF80: 63.96 | AM80: 85 | AN80: 85 | AO80: 85 | AP80: 51.83
A81: 10G1 | B81: العاشر العام | C81: 82 | D81: 40 | E81: 61.98 | F81: 85 | G81: 64 | H81: 71 | I81: 70 | J81: 35 | K81: 56.67 | L81: 94 | M81: 45 | N81: 65.73 | X81: 88 | Y81: 53 | Z81: 52.67 | AD81: 84 | AE81: 25 | AF81: 54.67 | AM81: 90 | AN81: 85 | AO81: 86.67 | AP81: 80.33
A82: 10G1 | B82: العاشر العام | C82: 81 | D82: 40 | E82: 61.82 | F82: 84 | G82: 57 | H82: 68.28 | I82: 75 | J82: 35 | K82: 58.33 | L82: 88 | M82: 55 | N82: 68.28 | X82: 61 | Y82: 49 | Z82: 49.18 | AD82: 65 | AE82: 45 | AF82: 60.83 | AM82: 60 | AN82: 85 | AO82: 76.67 | AP82: 87.27
A83: 10G1 | B83: العاشر العام | C83: 90 | D83: 40 | E83: 63.3 | F83: 80 | G83: 71 | H83: 74 | I83: 85 | J83: 23 | K83: 53.67 | L83: 86 | M83: 10 | N83: 48.77 | X83: 74 | Y83: 55 | Z83: 54.67 | AD83: 65 | AE83: 20 | AF83: 48.68 | AM83: 90 | AN83: 60 | AO83: 70.46 | AP83: 91.4
A84: 10G1 | B84: العاشر العام | C84: 79 | D84: 40 | E84: 61.49 | F84: 50 | G84: 31 | H84: 49.26 | I84: 42 | J84: 33 | K84: 48.93 | L84: 75 | M84: 25 | N84: 51.67 | X84: 60 | Y84: 50 | Z84: 50 | AD84: 60 | AE84: 20 | AF84: 48.27 | AM84: 60 | AN84: 35 | AO84: 60 | AP84: 93.3
A85: 10G1 | B85: العاشر العام | C85: 84 | D85: 36 | E85: 60.99 | F85: 85 | G85: 49 | H85: 65.55 | I85: 87 | J85: 65 | K85: 72.33 | L85: 82 | M85: 20 | N85: 50.67 | X85: 60 | Y85: 48 | Z85: 48.27 | AD85: 65 | AE85: 25 | AF85: 49.51 | AM85: 88 | AN85: 70 | AO85: 76 | AP85: 91.07
A86: 10G1 | B86: العاشر العام | C86: 83 | D86: 88 | E86: 86.33 | F86: 84 | G86: 94 | H86: 90.67 | I86: 61 | J86: 63 | K86: 66.27 | L86: 88 | M86: 45 | N86: 64.62 | X86: 86 | Y86: 75 | Z86: 75.33 | AD86: 89 | AE86: 35 | AF86: 61.49 | AM86: 60 | AN86: 85 | AO86: 76.67 | AP86: 73.63
A87: 10G1 | B87: العاشر العام | C87: 87 | D87: 64 | E87: 71.67 | F87: 84 | G87: 49 | H87: 65.37 | I87: 85 | J87: 53 | K87: 67 | L87: 88 | M87: 30 | N87: 59.33 | X87: 81 | Y87: 60 | Z87: 60.16 | AD87: 78 | AE87: 35 | AF87: 59.33 | AM87: 90 | AN87: 80 | AO87: 83.33 | AP87: 86.7
A88: 10G1 | B88: العاشر العام | C88: 81 | D88: 48 | E88: 64.46 | F88: 83 | G88: 53 | H88: 66.64 | I88: 60 | J88: 30 | K88: 50 | L88: 84 | M88: 25 | N88: 54.67 | X88: 80 | Y88: 49 | Z88: 49.1 | AD88: 79 | AE88: 25 | AF88: 53 | AM88: 90 | AN88: 90 | AO88: 90 | AP88: 60.33
A89: 10G1 | B89: العاشر العام | C89: 86 | D89: 44 | E89: 63.96 | F89: 83 | G89: 68 | H89: 73 | I89: 60 | J89: 40 | K89: 56.67 | L89: 90 | M89: 20 | N89: 53.33 | X89: 70 | Y89: 48 | Z89: 48.27 | AD89: 93 | AE89: 45 | AF89: 65.55 | AM89: 90 | AN89: 60 | AO89: 70.46 | AP89: 100
A90: 10G1 | B90: العاشر العام | C90: 84 | D90: 52 | E90: 66.46 | F90: 75 | G90: 64 | H90: 69.19 | I90: 75 | J90: 21 | K90: 49.68 | L90: 80 | M90: 25 | N90: 53.33 | X90: 60 | Y90: 49 | Z90: 49.1 | AD90: 60 | AE90: 30 | AF90: 50 | AM90: 70 | AN90: 45 | AO90: 61.65 | AP90: 81.57
A91: 10G1 | B91: العاشر العام | C91: 81 | D91: 28 | E91: 60 | F91: 79 | G91: 39 | H91: 61.15 | I91: 50 | J91: 37 | K91: 51.33 | L91: 80 | M91: 10 | N91: 48.27 | X91: 60 | Y91: 53 | Z91: 53.33 | AD91: 80 | AE91: 20 | AF91: 50 | AM91: 70 | AN91: 50 | AO91: 63.3 | AP91: 92.97
A92: 10G1 | B92: العاشر العام | C92: 85 | D92: 28 | E92: 60 | F92: 75 | G92: 21 | H92: 49.68 | I92: 70 | J92: 60 | K92: 66.82 | L92: 82 | M92: 20 | N92: 50.67 | X92: 60 | Y92: 48 | Z92: 48.27 | AD92: 60 | AE92: 30 | AF92: 50 | AM92: 88 | AN92: 70 | AO92: 76 | AP92: 85.37
A93: 10G2 | B93: العاشر العام | C93: 95 | D93: 60 | E93: 71.67 | F93: 90 | G93: 67 | H93: 74.67 | I93: 95 | J93: 67 | K93: 76.33 | L93: 100 | M93: 40 | N93: 65 | X93: 95 | Y93: 20 | Z93: 55 | AD93: 99 | AE93: 50 | AF93: 68.46 | AM93: 98 | AN93: 95 | AO93: 96
A94: 10G2 | B94: العاشر العام | C94: 77 | D94: 36 | E94: 60 | F94: 80 | G94: 56 | H94: 67.18 | I94: 55 | J94: 30 | K94: 49.51 | L94: 82 | M94: 35 | N94: 60.33 | X94: 87 | Y94: 15 | Z94: 49.68 | AD94: 60 | AE94: 35 | AF94: 53.33 | AM94: 88 | AN94: 70 | AO94: 76
A95: 10G2 | B95: العاشر العام | C95: 84 | D95: 36 | E95: 60.99 | F95: 60 | G95: 84 | H95: 76 | I95: 50 | J95: 49 | K95: 59.33 | L95: 80 | M95: 40 | N95: 61.65 | X95: 86 | Y95: 25 | Z95: 55.33 | AD95: 60 | AE95: 30 | AF95: 50 | AM95: 92 | AN95: 85 | AO95: 87.33
A96: 10G2 | B96: العاشر العام | C96: 88 | D96: 36 | E96: 61.65 | F96: 85 | G96: 78 | H96: 80.33 | I96: 70 | J96: 28 | K96: 52 | L96: 100 | M96: 25 | N96: 60 | X96: 86 | Y96: 25 | Z96: 55 | AD96: 83 | AE96: 30 | AF96: 57.67 | AM96: 88 | AN96: 75 | AO96: 79.33
A97: 10G2 | B97: العاشر العام | C97: 87 | D97: 52 | E97: 67 | F97: 55 | G97: 15 | H97: 47.03 | I97: 70 | J97: 47 | K97: 62.31 | L97: 82 | M97: 20 | N97: 50.67 | X97: 85 | Y97: 30 | Z97: 58.33 | AD97: 60 | AE97: 45 | AF97: 60 | AM97: 75 | AN97: 60 | AO97: 67.73
A98: 10G2 | B98: العاشر العام | C98: 84 | D98: 64 | E98: 70.82 | F98: 70 | G98: 62 | H98: 67.55 | I98: 86 | J98: 42 | K98: 63.3 | L98: 86 | M98: 30 | N98: 58.67 | X98: 88 | Y98: 35 | Z98: 61.32 | AD98: 60 | AE98: 30 | AF98: 50 | AM98: 90 | AN98: 60 | AO98: 70.46
A99: 10G2 | B99: العاشر العام | C99: 83 | D99: 40 | E99: 62.14 | F99: 70 | G99: 30 | H99: 53.33 | I99: 60 | J99: 35 | K99: 53.33 | L99: 88 | M99: 50 | N99: 66.46 | X99: 85 | Y99: 40 | Z99: 62.48 | AD99: 82 | AE99: 25 | AF99: 54 | AM99: 90 | AN99: 30 | AO99: 60
A100: 10G2 | B100: العاشر العام | C100: 83 | D100: 36 | E100: 60.83 | F100: 55 | G100: 64 | H100: 65.55 | I100: 70 | J100: 47 | K100: 62.31 | L100: 78 | M100: 50 | N100: 64.62 | X100: 87 | Y100: 35 | Z100: 61.15 | AD100: 71 | AE100: 30 | AF100: 53.67 | AM100: 60 | AN100: 50 | AO100: 61.65
A101: 10G2 | B101: العاشر العام | C101: 87 | D101: 36 | E101: 61.49 | F101: 85 | G101: 53 | H101: 67 | I101: 70 | J101: 2 | K101: 46.12 | L101: 84 | M101: 30 | N101: 58 | X101: 85 | Y101: 10 | Z101: 48.68 | AD101: 76 | AE101: 45 | AF101: 62.64 | AM101: 88 | AN101: 80 | AO101: 82.67
A102: 10G3 | B102: العاشر العام | C102: 84 | D102: 68 | E102: 73.33 | F102: 75 | G102: 55 | H102: 65.91 | I102: 81 | J102: 19 | K102: 49.84 | L102: 85 | M102: 60 | N102: 69.55 | X102: 85 | Y102: 40 | Z102: 62.48 | AD102: 84 | AE102: 55 | AF102: 67.55 | AM102: 90 | AN102: 90 | AO102: 90
A103: 10G3 | B103: العاشر العام | C103: 90 | D103: 80 | E103: 83.33 | F103: 90 | G103: 66 | H103: 74 | I103: 91 | J103: 63 | K103: 72.33 | L103: 95 | M103: 65 | N103: 75 | X103: 95 | Y103: 55 | Z103: 69.55 | AD103: 92 | AE103: 55 | AF103: 69 | AM103: 88 | AN103: 95 | AO103: 92.67
A104: 10G3 | B104: العاشر العام | C104: 85 | D104: 72 | E104: 76.33 | F104: 87 | G104: 87 | H104: 87 | I104: 75 | J104: 84 | K104: 81 | L104: 80 | M104: 90 | N104: 86.67 | X104: 86 | Y104: 80 | Z104: 82 | AD104: 72 | AE104: 70 | AF104: 70.82 | AM104: 86 | AN104: 95 | AO104: 92
A105: 10G3 | B105: العاشر العام | C105: 83 | D105: 56 | E105: 67.73 | F105: 85 | G105: 55 | H105: 67.73 | I105: 75 | J105: 16 | K105: 48.85 | L105: 80 | M105: 45 | N105: 63.3 | X105: 85 | Y105: 30 | Z105: 58.33 | AD105: 67 | AE105: 50 | AF105: 62.81 | AM105: 60 | AN105: 85 | AO105: 76.67
A106: 10G3 | B106: العاشر العام | C106: 82 | D106: 56 | E106: 67.55 | F106: 75 | G106: 67 | H106: 70.28 | I106: 60 | J106: 16 | K106: 47.61 | L106: 84 | M106: 40 | N106: 62.31 | X106: 88 | Y106: 40 | Z106: 62.97 | AD106: 96 | AE106: 30 | AF106: 60.99 | AM106: 90 | AN106: 85 | AO106: 86.67
A107: 10G3 | B107: العاشر العام | C107: 90 | D107: 76 | E107: 80.67 | F107: 89 | G107: 67 | H107: 74.33 | I107: 88 | J107: 44 | K107: 64.29 | L107: 100 | M107: 35 | N107: 63.3 | X107: 87 | Y107: 35 | Z107: 61.15 | AD107: 99 | AE107: 30 | AF107: 61.49 | AM107: 92 | AN107: 95 | AO107: 94
A108: 10G3 | B108: العاشر العام | C108: 84 | D108: 48 | E108: 65 | F108: 75 | G108: 71 | H108: 72.33 | I108: 80 | J108: 16 | K108: 49.26 | L108: 85 | M108: 35 | N108: 60.83 | X108: 86 | Y108: 20 | Z108: 52 | AD108: 95 | AE108: 30 | AF108: 60.83 | AM108: 90 | AN108: 90 | AO108: 90
A109: 10G3 | B109: العاشر العام | C109: 87 | D109: 44 | E109: 64.12 | F109: 75 | G109: 71 | H109: 72.33 | I109: 70 | J109: 14 | K109: 48.11 | L109: 92 | M109: 30 | N109: 60.33 | X109: 95 | Y109: 25 | Z109: 58.33 | AD109: 88 | AE109: 25 | AF109: 56 | AM109: 90 | AN109: 80 | AO109: 83.33
A110: 10G3 | B110: العاشر العام | C110: 81 | D110: 48 | E110: 64.46 | F110: 69 | G110: 56 | H110: 65.18 | I110: 90 | J110: 44 | K110: 64.62 | L110: 88 | M110: 35 | N110: 61.32 | X110: 87 | Y110: 30 | Z110: 59 | AD110: 95 | AE110: 30 | AF110: 60.83 | AM110: 92 | AN110: 75 | AO110: 80.67
A111: 10G3 | B111: العاشر العام | C111: 82 | D111: 36 | E111: 60.66 | F111: 60 | G111: 45 | H111: 60 | I111: 50 | J111: 16 | K111: 46.78 | L111: 75 | M111: 15 | N111: 48.68 | X111: 86 | Y111: 30 | Z111: 58.67 | AD111: 65 | AE111: 40 | AF111: 58.33 | AM111: 92 | AN111: 65 | AO111: 74
A112: 10G3 | B112: العاشر العام | C112: 88 | D112: 76 | E112: 80 | F112: 80 | G112: 82 | H112: 81.33 | I112: 86 | J112: 44 | K112: 63.96 | L112: 82 | M112: 50 | N112: 65.37 | X112: 85 | Y112: 30 | Z112: 58.33 | AD112: 99 | AE112: 50 | AF112: 68.46 | AM112: 86 | AN112: 75 | AO112: 78.67
A113: 10G3 | B113: العاشر العام | C113: 83 | D113: 76 | E113: 78.33 | F113: 79 | G113: 82 | H113: 81 | I113: 71 | J113: 67 | K113: 69.55 | L113: 88 | M113: 55 | N113: 68.28 | X113: 86 | Y113: 35 | Z113: 60.99 | AD113: 69 | AE113: 55 | AF113: 64.79 | AM113: 86 | AN113: 90 | AO113: 88.67
A114: 10G3 | B114: العاشر العام | C114: 79 | D114: 28 | E114: 60 | F114: 60 | G114: 28 | H114: 49.59 | I114: 30 | J114: 14 | K114: 44.8 | L114: 78 | M114: 35 | N114: 59.33 | X114: 86 | Y114: 30 | Z114: 58.67 | AD114: 60 | AE114: 25 | AF114: 49.1 | AM114: 60 | AN114: 30 | AO114: 60
A115: 10G3 | B115: العاشر العام | C115: 82 | D115: 92 | E115: 88.67 | F115: 80 | G115: 62 | H115: 69.37 | I115: 70 | J115: 37 | K115: 58 | L115: 90 | M115: 20 | N115: 53.33 | X115: 87 | Y115: 45 | Z115: 64.46 | AD115: 96 | AE115: 25 | AF115: 58.67 | AM115: 88 | AN115: 70 | AO115: 76
A116: 10G3 | B116: العاشر العام | C116: 95 | D116: 96 | E116: 95.67 | F116: 87 | G116: 76 | H116: 79.67 | I116: 99 | J116: 63 | K116: 75 | L116: 100 | M116: 75 | N116: 83.33 | X116: 87 | Y116: 75 | Z116: 79 | AD116: 87 | AE116: 30 | AF116: 59 | AM116: 90 | AN116: 85 | AO116: 86.67
A117: 10G3 | B117: العاشر العام | C117: 83 | D117: 68 | E117: 73 | F117: 69 | G117: 72 | H117: 71 | I117: 90 | J117: 30 | K117: 60 | L117: 90 | M117: 50 | N117: 66.82 | X117: 88 | Y117: 30 | Z117: 59.33 | AD117: 98 | AE117: 45 | AF117: 66.46 | AM117: 92 | AN117: 90 | AO117: 90.67
A118: 10G3 | B118: العاشر العام | C118: 86 | D118: 56 | E118: 68.28 | F118: 82 | G118: 78 | H118: 79.33 | I118: 50 | J118: 26 | K118: 58.33 | L118: 88 | M118: 70 | N118: 76 | X118: 86 | Y118: 40 | Z118: 62.64 | AD118: 98 | AE118: 50 | AF118: 68.28 | AM118: 82 | AN118: 75 | AO118: 77.33
A119: 10G3 | B119: العاشر العام | C119: 80 | D119: 28 | E119: 60 | F119: 65 | G119: 49 | H119: 62.14 | I119: 82 | J119: 49 | K119: 65 | L119: 80 | M119: 45 | N119: 63.3 | X119: 86 | Y119: 30 | Z119: 58.67 | AD119: 63 | AE119: 25 | AF119: 49.35 | AM119: 80 | AN119: 75 | AO119: 76.67
A120: 10G3 | B120: العاشر العام | C120: 79 | D120: 32 | E120: 60 | F120: 45 | G120: 40 | H120: 51.67 | I120: 50 | J120: 26 | K120: 48.44 | L120: 75 | M120: 15 | N120: 48.68 | X120: 85 | Y120: 40 | Z120: 62.48 | AD120: 60 | AE120: 25 | AF120: 49.1 | AM120: 60 | AN120: 25 | AO120: 60
A121: 10G3 | B121: العاشر العام | C121: 80 | D121: 88 | E121: 85.33 | F121: 70 | G121: 78 | H121: 75.33 | I121: 70 | J121: 56 | K121: 65.37 | L121: 82 | M121: 75 | N121: 77.33 | X121: 86 | Y121: 55 | Z121: 67.91 | AD121: 63 | AE121: 45 | AF121: 60.5 | AM121: 80 | AN121: 80 | AO121: 80
A122: 10G3 | B122: العاشر العام | C122: 82 | D122: 68 | E122: 72.67 | F122: 80 | G122: 82 | H122: 81.33 | I122: 90 | J122: 40 | K122: 63.3 | L122: 88 | M122: 30 | N122: 59.33 | X122: 87 | Y122: 40 | Z122: 62.81 | AD122: 97 | AE122: 55 | AF122: 69.91 | AM122: 88 | AN122: 85 | AO122: 86
A123: 10G3 | B123: العاشر العام | C123: 81 | D123: 76 | E123: 77.67 | F123: 77 | G123: 82 | H123: 80.33 | I123: 75 | J123: 19 | K123: 49.35 | L123: 85 | M123: 50 | N123: 65.91 | X123: 87 | Y123: 15 | Z123: 49.68 | AD123: 98 | AE123: 55 | AF123: 70.09 | AM123: 88 | AN123: 90 | AO123: 89.33
A124: 10G3 | B124: العاشر العام | C124: 90 | D124: 84 | E124: 86 | F124: 80 | G124: 88 | H124: 85.33 | I124: 90 | J124: 37 | K124: 62.31 | L124: 86 | M124: 55 | N124: 67.91 | X124: 88 | Y124: 65 | Z124: 72.67 | AD124: 95 | AE124: 55 | AF124: 69.55 | AM124: 80 | AN124: 90 | AO124: 86.67
A125: 10G3 | B125: العاشر العام | C125: 95 | D125: 80 | E125: 85 | F125: 89 | G125: 82 | H125: 84.33 | I125: 98 | J125: 70 | K125: 79.33 | L125: 100 | M125: 80 | N125: 86.67 | X125: 95 | Y125: 65 | Z125: 75 | AD125: 99 | AE125: 50 | AF125: 68.46 | AM125: 90 | AN125: 90 | AO125: 90
A126: 10G3 | B126: العاشر العام | C126: 84 | D126: 80 | E126: 81.33 | F126: 80 | G126: 76 | H126: 77.33 | I126: 75 | J126: 53 | K126: 65.18 | L126: 75 | M126: 70 | N126: 71.67 | X126: 86 | Y126: 35 | Z126: 60.99 | AD126: 91 | AE126: 50 | AF126: 67 | AM126: 80 | AN126: 80 | AO126: 80
A127: 10G3 | B127: العاشر العام | C127: 85 | D127: 72 | E127: 76.33 | F127: 75 | G127: 53 | H127: 65.18 | I127: 85 | J127: 30 | K127: 58.33 | L127: 80 | M127: 35 | N127: 60 | X127: 86 | Y127: 20 | Z127: 52 | AD127: 83 | AE127: 50 | AF127: 65.55 | AM127: 90 | AN127: 80 | AO127: 83.33
A128: 10AP1 | B128: العاشر التطبيقي | C128: 80 | D128: 52 | F128: 60 | G128: 25 | H128: 49.1 | I128: 70 | J128: 21 | K128: 47.28 | L128: 60 | M128: 35 | AJ128: 73 | AK128: 25 | AM128: 60 | AN128: 45
A129: 10AP1 | B129: العاشر التطبيقي | C129: 77 | D129: 28 | E129: 60 | F129: 40 | G129: 31 | H129: 48.44 | I129: 78 | J129: 5 | K129: 65.18 | L129: 60 | M129: 30 | N129: 55.33 | AJ129: 25 | AK129: 35 | AL129: 46.87 | AM129: 80 | AN129: 80 | AO129: 80
A130: 10AP1 | B130: العاشر التطبيقي | C130: 83 | D130: 68 | E130: 73 | F130: 98 | G130: 64 | H130: 75.33 | I130: 93 | J130: 44 | L130: 80 | M130: 35 | N130: 71.33 | AJ130: 75 | AK130: 15 | AL130: 64.46 | AM130: 85 | AN130: 85 | AO130: 85
A131: 10AP1 | B131: العاشر التطبيقي | C131: 88 | D131: 52 | F131: 97 | G131: 71 | H131: 79.67 | I131: 87 | J131: 35 | L131: 73 | M131: 35 | AJ131: 93 | AK131: 25 | AM131: 85 | AN131: 60
A132: 10AP1 | B132: العاشر التطبيقي | C132: 80 | D132: 20 | F132: 73 | G132: 31 | H132: 55 | I132: 72 | J132: 23 | L132: 60 | M132: 20 | AJ132: 83 | AK132: 20 | AM132: 75 | AN132: 40
A133: 10AP1 | B133: العاشر التطبيقي | C133: 79 | D133: 52 | F133: 81 | G133: 21 | H133: 51 | I133: 88 | J133: 9 | K133: 51.33 | L133: 70 | M133: 35 | AJ133: 90 | AK133: 20 | AM133: 85 | AN133: 50
A134: 10AP1 | B134: العاشر التطبيقي | C134: 82 | D134: 56 | E134: 67.55 | F134: 98 | G134: 26 | H134: 60 | I134: 92 | J134: 16 | L134: 80 | M134: 40 | N134: 72.67 | AJ134: 85 | AK134: 35 | AL134: 68.64 | AM134: 80 | AN134: 85 | AO134: 83.33
A135: 10AP1 | B135: العاشر التطبيقي | C135: 83 | D135: 28 | F135: 90 | G135: 34 | H135: 61.32 | I135: 86 | J135: 14 | K135: 49.01 | L135: 50 | M135: 25 | AJ135: 83 | AK135: 20 | AM135: 70 | AN135: 50
A136: 10AP1 | B136: العاشر التطبيقي | C136: 83 | D136: 44 | E136: 63.47 | F136: 94 | G136: 20 | H136: 54.67 | I136: 91 | J136: 9 | K136: 48.02 | L136: 63 | M136: 35 | N136: 68.38 | AJ136: 83 | AK136: 40 | AL136: 70.75 | AM136: 94 | AN136: 70 | AO136: 80
A137: 10AP1 | B137: العاشر التطبيقي | C137: 79 | D137: 44 | E137: 62.81 | F137: 85 | G137: 39 | H137: 62.14 | I137: 79 | J137: 9 | L137: 50 | M137: 30 | N137: 63.13 | AJ137: 80 | AK137: 10 | AL137: 64.79 | AM137: 96 | AN137: 45 | AO137: 75
A138: 10A1 | B138: العاشر المتقدم | C138: 93 | D138: 52 | E138: 68.1 | F138: 89 | G138: 60 | H138: 70.28 | I138: 80 | J138: 58 | K138: 67.91 | L138: 99 | M138: 30 | N138: 61.49 | O138: 99 | P138: 30 | Q138: 61.49 | U138: 84 | V138: 30 | W138: 58 | AA138: 90 | AB138: 30 | AC138: 60 | AM138: 70 | AN138: 50 | AO138: 78
A139: 10A1 | B139: العاشر المتقدم | C139: 92 | D139: 40 | E139: 63.63 | F139: 83 | G139: 48 | H139: 64.79 | I139: 75 | J139: 77 | K139: 76.33 | L139: 78 | M139: 30 | N139: 56 | O139: 78 | P139: 30 | Q139: 56 | U139: 85 | V139: 25 | W139: 55 | AA139: 85 | AB139: 35 | AC139: 60.83 | AM139: 98 | AN139: 95 | AO139: 66.09
A140: 10A1 | B140: العاشر المتقدم | C140: 86 | D140: 40 | E140: 62.64 | F140: 85 | G140: 79 | H140: 81 | I140: 55 | J140: 51 | K140: 61.15 | L140: 73 | M140: 45 | N140: 62.14 | O140: 73 | P140: 45 | Q140: 62.14 | U140: 72 | V140: 40 | W140: 60.33 | AA140: 75 | AB140: 30 | AC140: 55 | AM140: 97 | AN140: 90 | AO140: 63.3
A141: 10A1 | B141: العاشر المتقدم | C141: 91 | D141: 56 | E141: 69.19 | F141: 90 | G141: 79 | H141: 82.67 | I141: 90 | J141: 49 | K141: 66.46 | L141: 100 | M141: 45 | N141: 66.82 | O141: 100 | P141: 45 | Q141: 66.82 | U141: 90 | V141: 30 | W141: 60 | AA141: 90 | AB141: 40 | AC141: 63.3 | AM141: 97 | AN141: 90 | AO141: 96
A142: 10A1 | B142: العاشر المتقدم | C142: 90 | D142: 60 | E142: 70.46 | F142: 90 | G142: 55 | H142: 68.64 | I142: 85 | J142: 33 | K142: 60.16 | L142: 100 | M142: 55 | N142: 70.46 | O142: 100 | P142: 55 | Q142: 70.46 | U142: 100 | V142: 40 | W142: 65 | AA142: 90 | AB142: 60 | AC142: 70.46 | AM142: 98 | AN142: 90 | AO142: 92.33
A143: 10A1 | B143: العاشر المتقدم | C143: 88 | D143: 76 | E143: 80 | F143: 90 | G143: 62 | H143: 71.33 | I143: 85 | J143: 77 | K143: 79.67 | L143: 92 | M143: 60 | N143: 70.82 | O143: 92 | P143: 60 | Q143: 70.82 | U143: 86 | V143: 20 | W143: 52 | AA143: 90 | AB143: 45 | AC143: 65 | AM143: 95 | AN143: 95 | AO143: 92.33
A144: 10A1 | B144: العاشر المتقدم | C144: 87 | D144: 72 | E144: 77 | F144: 82 | G144: 64 | H144: 70.46 | I144: 90 | J144: 35 | K144: 61.65 | L144: 92 | M144: 50 | N144: 67.18 | O144: 92 | P144: 50 | Q144: 67.18 | U144: 70 | V144: 25 | W144: 50 | AA144: 90 | AB144: 40 | AC144: 63.3 | AM144: 97 | AN144: 90 | AO144: 92.67
A145: 10A1 | B145: العاشر المتقدم | C145: 88 | D145: 84 | E145: 85.33 | F145: 90 | G145: 72 | H145: 78 | I145: 95 | J145: 84 | K145: 87.67 | L145: 100 | M145: 55 | N145: 70.46 | O145: 100 | P145: 55 | Q145: 70.46 | U145: 96 | V145: 40 | W145: 64.29 | AA145: 80 | AB145: 45 | AC145: 63.3 | AM145: 98 | AN145: 90 | AO145: 95
A146: 10A1 | B146: العاشر المتقدم | C146: 96 | D146: 80 | E146: 85.33 | F146: 90 | G146: 70 | H146: 76.67 | I146: 85 | J146: 72 | K146: 76.33 | L146: 100 | M146: 40 | N146: 65 | O146: 100 | P146: 40 | Q146: 65 | U146: 98 | V146: 25 | W146: 59.33 | AA146: 90 | AB146: 40 | AC146: 63.3 | AM146: 98 | AN146: 90 | AO146: 92.33
A147: 10A1 | B147: العاشر المتقدم | C147: 87 | D147: 68 | E147: 74.33 | F147: 88 | G147: 47 | H147: 65.37 | I147: 85 | J147: 74 | K147: 77.67 | L147: 100 | M147: 40 | N147: 65 | O147: 100 | P147: 40 | Q147: 65 | U147: 90 | V147: 50 | W147: 66.82 | AA147: 90 | AB147: 30 | AC147: 60 | AM147: 97 | AN147: 70 | AO147: 92.67
A148: 10A1 | B148: العاشر المتقدم | C148: 96 | D148: 92 | E148: 93.33 | F148: 89 | G148: 73 | H148: 78.33 | I148: 85 | J148: 70 | K148: 75 | L148: 93 | M148: 50 | N148: 67.36 | O148: 93 | P148: 50 | Q148: 67.36 | U148: 78 | V148: 45 | W148: 62.97 | AA148: 95 | AB148: 55 | AC148: 69.55 | AM148: 70 | AN148: 5 | AO148: 92.67
A149: 10A1 | B149: العاشر المتقدم | C149: 95 | D149: 56 | E149: 69.91 | F149: 84 | G149: 61 | H149: 69.73 | I149: 80 | J149: 60 | K149: 68.64 | L149: 91 | M149: 35 | N149: 61.82 | O149: 91 | P149: 35 | Q149: 61.82 | U149: 73 | V149: 25 | W149: 51 | AA149: 80 | AB149: 45 | AC149: 63.3 | AM149: 85 | AN149: 25 | AO149: 79
A150: 10A1 | B150: العاشر المتقدم | C150: 86 | D150: 84 | E150: 84.67 | F150: 90 | G150: 91 | H150: 90.67 | I150: 86 | J150: 88 | K150: 87.33 | L150: 96 | M150: 35 | N150: 62.64 | O150: 96 | P150: 35 | Q150: 62.64 | U150: 84 | V150: 35 | W150: 60.66 | AA150: 95 | AB150: 50 | AC150: 67.73 | AM150: 90 | AN150: 65 | AO150: 95.67
A151: 10A1 | B151: العاشر المتقدم | C151: 85 | D151: 84 | E151: 84.33 | F151: 83 | G151: 76 | H151: 78.33 | I151: 75 | J151: 63 | K151: 68.82 | L151: 96 | M151: 30 | N151: 60.99 | O151: 96 | P151: 30 | Q151: 60.99 | U151: 70 | V151: 25 | W151: 50 | AA151: 90 | AB151: 35 | AC151: 61.65 | AM151: 90 | AN151: 90 | AO151: 82.33
A152: 10A1 | B152: العاشر المتقدم | C152: 84 | D152: 80 | E152: 81.33 | F152: 80 | G152: 68 | H152: 72 | I152: 81 | J152: 70 | K152: 73.67 | L152: 81 | M152: 35 | N152: 60.16 | O152: 81 | P152: 35 | Q152: 60.16 | U152: 71 | V152: 30 | W152: 53.67 | AA152: 85 | AB152: 35 | AC152: 60.83 | AM152: 92 | AN152: 95 | AO152: 86
A153: 10A1 | B153: العاشر المتقدم | C153: 94 | D153: 80 | E153: 84.67 | F153: 90 | G153: 67 | H153: 74.67 | I153: 90 | J153: 65 | K153: 73.33 | L153: 100 | M153: 40 | N153: 65 | O153: 100 | P153: 40 | Q153: 65 | U153: 88 | V153: 35 | W153: 61.32 | AA153: 90 | AB153: 35 | AC153: 61.65 | AM153: 85 | AN153: 80 | AO153: 81.67
A154: 10A1 | B154: العاشر المتقدم | C154: 84 | D154: 68 | E154: 73.33 | F154: 83 | G154: 67 | H154: 72.33 | I154: 85 | J154: 51 | K154: 66.27 | L154: 95 | M154: 35 | N154: 62.48 | O154: 95 | P154: 35 | Q154: 62.48 | U154: 70 | V154: 30 | W154: 53.33 | AA154: 70 | AB154: 40 | AC154: 60 | AM154: 90 | AN154: 90 | AO154: 79.33
A155: 10A1 | B155: العاشر المتقدم | C155: 90 | D155: 72 | E155: 78 | F155: 92 | G155: 59 | H155: 70.46 | I155: 98 | J155: 88 | K155: 91.33 | L155: 100 | M155: 75 | N155: 83.33 | O155: 100 | P155: 75 | Q155: 83.33 | U155: 90 | V155: 30 | W155: 60 | AA155: 100 | AB155: 75 | AC155: 83.33 | AM155: 70 | AN155: 40 | AO155: 96.33
A156: 10A1 | B156: العاشر المتقدم | C156: 88 | D156: 84 | E156: 85.33 | F156: 85 | G156: 74 | H156: 77.67 | I156: 70 | J156: 56 | K156: 65.37 | L156: 98 | M156: 30 | N156: 61.32 | O156: 98 | P156: 30 | Q156: 61.32 | U156: 70 | V156: 25 | W156: 50 | AA156: 85 | AB156: 40 | AC156: 62.48 | AM156: 98 | AN156: 100 | AO156: 76
A157: 10A1 | B157: العاشر المتقدم | C157: 89 | D157: 76 | E157: 80.33 | F157: 85 | G157: 47 | H157: 64.79 | I157: 90 | J157: 60 | K157: 70.46 | L157: 96 | M157: 35 | N157: 62.64 | O157: 96 | P157: 35 | Q157: 62.64 | U157: 80 | V157: 20 | W157: 50 | AA157: 95 | AB157: 45 | AC157: 65.91 | AM157: 92 | AN157: 80 | AO157: 88.33
A158: 11G1 | B158: الحادي عشر العام | C158: 87 | D158: 28 | E158: 60 | F158: 80 | G158: 50 | H158: 65 | I158: 80 | J158: 12 | K158: 48.6 | L158: 52 | M158: 10 | N158: 45.95 | R158: 81 | S158: 50 | T158: 65.18 | X158: 94 | Y158: 51 | Z158: 51.33 | AM158: 70 | AN158: 5 | AO158: 60
A159: 11G1 | B159: الحادي عشر العام | C159: 78 | D159: 60 | E159: 68.28 | F159: 68 | G159: 77 | H159: 74 | I159: 69 | J159: 28 | K159: 51.67 | L159: 50 | M159: 25 | N159: 48.27 | R159: 79 | S159: 40 | T159: 61.49 | X159: 60 | Y159: 50 | Z159: 50 | AM159: 85 | AN159: 25 | AO159: 60
A160: 11G1 | B160: الحادي عشر العام | C160: 94 | D160: 64 | E160: 74 | F160: 84 | G160: 80 | H160: 81.33 | I160: 79 | J160: 51 | K160: 65.18 | L160: 76 | M160: 35 | N160: 58.67 | R160: 81 | S160: 40 | T160: 61.82 | X160: 98 | Y160: 59 | Z160: 59.33 | AM160: 90 | AN160: 65 | AO160: 73.33
A161: 11G1 | B161: الحادي عشر العام | C161: 92 | D161: 76 | E161: 81.33 | F161: 72 | G161: 65 | H161: 69 | I161: 78 | J161: 35 | K161: 59.33 | L161: 72 | M161: 30 | N161: 54 | R161: 83 | S161: 35 | T161: 60.5 | X161: 75 | Y161: 50 | Z161: 49.51 | AM161: 90 | AN161: 90 | AO161: 90
A162: 11G1 | B162: الحادي عشر العام | C162: 89 | D162: 76 | E162: 80.33 | F162: 74 | G162: 65 | H162: 69.37 | I162: 79 | J162: 79 | K162: 79 | L162: 77 | M162: 35 | N162: 59 | R162: 82 | S162: 40 | T162: 61.98 | X162: 71 | Y162: 57 | Z162: 57 | AM162: 92 | AN162: 95 | AO162: 94
A163: 11G1 | B163: الحادي عشر العام | C163: 88 | D163: 76 | E163: 80 | F163: 77 | G163: 68 | H163: 71 | I163: 65 | J163: 33 | K163: 53.67 | L163: 60 | M163: 25 | N163: 49.1 | R163: 84 | S163: 30 | T163: 58 | X163: 81 | Y163: 49 | Z163: 49.18 | AM163: 85 | AN163: 80 | AO163: 81.67
A164: 11G1 | B164: الحادي عشر العام | C164: 78 | D164: 68 | E164: 71.33 | F164: 77 | G164: 80 | H164: 79 | I164: 63 | J164: 33 | K164: 53 | L164: 60 | M164: 30 | N164: 50 | R164: 82 | S164: 35 | T164: 60.33 | X164: 60 | Y164: 48 | Z164: 48.27 | AM164: 90 | AN164: 90 | AO164: 90
A165: 11G1 | B165: الحادي عشر العام | C165: 73 | D165: 28 | E165: 60 | F165: 65 | G165: 27 | H165: 49.84 | I165: 37 | J165: 30 | K165: 48.02 | L165: 45 | M165: 20 | N165: 47.03 | R165: 78 | S165: 25 | T165: 52.67 | X165: 60 | Y165: 48 | Z165: 48.27 | AM165: 70 | AN165: 40 | AO165: 60
A166: 11G1 | B166: الحادي عشر العام | C166: 99 | D166: 92 | E166: 94.33 | F166: 74 | G166: 96 | H166: 88.67 | I166: 89 | J166: 84 | K166: 85.67 | L166: 70 | M166: 65 | N166: 68.64 | R166: 81 | S166: 75 | T166: 77 | X166: 81 | Y166: 60 | Z166: 60.16 | AM166: 98 | AN166: 100 | AO166: 99.33
A167: 11G1 | B167: الحادي عشر العام | C167: 81 | D167: 84 | E167: 83 | F167: 78 | G167: 56 | H167: 66.82 | I167: 41 | J167: 33 | K167: 48.85 | L167: 65 | M167: 40 | N167: 55.33 | R167: 75 | S167: 35 | T167: 58.33 | X167: 60 | Y167: 47 | Z167: 47.44 | AM167: 92 | AN167: 80 | AO167: 84
A168: 11G1 | B168: الحادي عشر العام | C168: 85 | D168: 85 | E168: 81.67 | F168: 74 | G168: 57 | H168: 66.46 | I168: 73 | J168: 33 | K168: 56.33 | L168: 60 | M168: 35 | N168: 53.33 | R168: 75 | S168: 35 | T168: 58.33 | X168: 65 | Y168: 52 | Z168: 51.67 | AM168: 90 | AN168: 75 | AO168: 80
A169: 11G1 | B169: الحادي عشر العام | C169: 85 | D169: 68 | E169: 73.67 | F169: 74 | G169: 60 | H169: 67.55 | I169: 62 | J169: 33 | K169: 52.67 | L169: 72 | M169: 35 | N169: 57.33 | R169: 80 | S169: 40 | T169: 61.65 | X169: 71 | Y169: 54 | Z169: 53.67 | AM169: 94 | AN169: 80 | AO169: 84.67
A170: 11G1 | B170: الحادي عشر العام | C170: 96 | D170: 72 | E170: 80 | F170: 83 | G170: 77 | H170: 79 | I170: 90 | J170: 33 | K170: 60.99 | L170: 82 | M170: 30 | N170: 57.33 | R170: 83 | S170: 45 | T170: 63.8 | X170: 89 | Y170: 60 | Z170: 59.67 | AM170: 95 | AN170: 75 | AO170: 81.67
A171: 11G1 | B171: الحادي عشر العام | C171: 90 | D171: 72 | E171: 78 | F171: 76 | G171: 80 | H171: 78.67 | I171: 84 | J171: 33 | K171: 60 | L171: 77 | M171: 20 | N171: 49.68 | R171: 82 | S171: 45 | T171: 63.63 | X171: 81 | Y171: 48 | Z171: 48.35 | AM171: 95 | AN171: 75 | AO171: 81.67
A172: 11G1 | B172: الحادي عشر العام | C172: 77 | D172: 68 | E172: 71 | F172: 76 | G172: 44 | H172: 62.31 | I172: 78 | J172: 30 | K172: 56 | L172: 68 | M172: 40 | N172: 59.33 | R172: 84 | S172: 45 | T172: 63.96 | X172: 64 | Y172: 48 | Z172: 48.6 | AM172: 90 | AN172: 65 | AO172: 73.33
A173: 11G1 | B173: الحادي عشر العام | C173: 82 | D173: 68 | E173: 72.67 | F173: 82 | G173: 80 | H173: 80.67 | I173: 65 | J173: 30 | K173: 51.67 | L173: 68 | M173: 35 | N173: 56 | R173: 77 | S173: 45 | T173: 62.81 | X173: 74 | Y173: 48 | Z173: 47.77 | AM173: 92 | AN173: 55 | AO173: 69
A174: 11G1 | B174: الحادي عشر العام | C174: 82 | D174: 68 | E174: 73.33 | F174: 62 | G174: 66 | H174: 67.55 | I174: 35 | J174: 29 | K174: 48.19 | L174: 40 | M174: 35 | N174: 49.1 | R174: 77 | S174: 35 | T174: 59 | X174: 70 | Y174: 48 | Z174: 48.27 | AM174: 92 | AN174: 70 | AO174: 77.33
A175: 11G1 | B175: الحادي عشر العام | C175: 90 | D175: 68 | E175: 75.33 | F175: 77 | G175: 66 | H175: 70.28 | I175: 76 | J175: 35 | K175: 58.67 | L175: 60 | M175: 35 | N175: 53.33 | R175: 86 | S175: 35 | T175: 60.99 | X175: 80 | Y175: 53 | Z175: 53.33 | AM175: 92 | AN175: 70 | AO175: 77.33
A176: 11G3 | B176: الحادي عشر العام | C176: 87 | D176: 68 | E176: 71.33 | F176: 78 | G176: 34 | H176: 58.67 | I176: 71 | J176: 60 | K176: 67 | L176: 90 | M176: 25 | N176: 56.67 | R176: 81 | S176: 50 | T176: 65.18 | X176: 85 | Y176: 62 | Z176: 62.48 | AM176: 90 | AN176: 75 | AO176: 80 | AP176: 62
A177: 11G3 | B177: الحادي عشر العام | C177: 80 | D177: 85 | E177: 83.33 | F177: 74 | G177: 76 | H177: 75.33 | I177: 46 | J177: 82 | K177: 70.46 | L177: 75 | M177: 60 | N177: 67.73 | R177: 77 | S177: 85 | T177: 82.33 | X177: 82 | Y177: 81 | Z177: 80.67 | AM177: 90 | AN177: 70 | AO177: 76.67
A178: 11G3 | B178: الحادي عشر العام | C178: 85 | D178: 60 | E178: 69.55 | F178: 70 | G178: 57 | H178: 65.73 | I178: 7 | J178: 47 | K178: 48.35 | L178: 72 | M178: 36 | N178: 57.33 | R178: 77 | S178: 55 | T178: 66.27 | X178: 61 | Y178: 47 | Z178: 46.7 | AM178: 92 | AN178: 75 | AO178: 80.67 | AP178: 70.5
A179: 11G3 | B179: الحادي عشر العام | C179: 88 | D179: 76 | E179: 80 | F179: 82 | G179: 74 | H179: 76.67 | I179: 74 | J179: 72 | K179: 72.67 | L179: 88 | M179: 45 | N179: 64.62 | R179: 82 | S179: 50 | T179: 65.37 | X179: 62 | Y179: 54 | Z179: 54 | AM179: 92 | AN179: 80 | AO179: 84 | AP179: 54.97
A180: 11G3 | B180: الحادي عشر العام | C180: 70 | D180: 44 | E180: 61.32 | F180: 75 | G180: 29 | H180: 54.33 | I180: 63 | J180: 72 | K180: 69.91 | L180: 72 | M180: 35 | N180: 57.33 | R180: 81 | S180: 53 | T180: 60.16 | X180: 82 | Y180: 48 | Z180: 47.61 | AM180: 92 | AN180: 70 | AO180: 77.33
A181: 11G3 | B181: الحادي عشر العام | C181: 73 | D181: 64 | E181: 68.82 | F181: 73 | G181: 64 | H181: 68.82 | I181: 38 | J181: 67 | K181: 63.63 | L181: 68 | M181: 35 | N181: 56 | R181: 75 | S181: 65 | T181: 69.55 | X181: 71 | Y181: 47 | Z181: 46.7 | AM181: 92 | AN181: 85 | AO181: 87.33
A182: 11G3 | B182: الحادي عشر العام | C182: 89 | D182: 36 | E182: 61.82 | F182: 68 | G182: 23 | H182: 49.43 | I182: 12 | J182: 19 | K182: 44.14 | L182: 70 | M182: 25 | N182: 50 | R182: 74 | S182: 35 | T182: 58 | X182: 80 | Y182: 48 | Z182: 48.27 | AM182: 80 | AN182: 50 | AO182: 65 | AP182: 84.8
A183: 11G3 | B183: الحادي عشر العام | C183: 79 | D183: 24 | E183: 60 | F183: 76 | G183: 23 | H183: 50.67 | I183: 83 | J183: 35 | K183: 60.5 | L183: 80 | M183: 30 | N183: 56.67 | R183: 83 | S183: 35 | T183: 60.5 | X183: 81 | Y183: 49 | Z183: 49.18 | AM183: 92 | AN183: 70 | AO183: 77.33 | AP183: 51.17
A184: 11G3 | B184: الحادي عشر العام | C184: 82 | D184: 72 | E184: 75.33 | F184: 74 | G184: 86 | H184: 82 | I184: 77 | J184: 93 | K184: 87.67 | L184: 76 | M184: 25 | N184: 52 | R184: 72 | S184: 45 | T184: 61.98 | X184: 90 | Y184: 60 | Z184: 60 | AM184: 95 | AN184: 95 | AO184: 95
A185: 11G3 | B185: الحادي عشر العام | C185: 78 | D185: 80 | E185: 79.33 | F185: 75 | G185: 48 | H185: 63.47 | I185: 80 | J185: 74 | K185: 76 | L185: 88 | M185: 55 | N185: 68.28 | R185: 75 | S185: 60 | T185: 67.73 | X185: 81 | Y185: 49 | Z185: 49.18 | AM185: 95 | AN185: 90 | AO185: 91.67 | AP185: 49.83
A186: 11G3 | B186: الحادي عشر العام | C186: 86 | D186: 48 | E186: 65.37 | F186: 78 | G186: 74 | H186: 75.33 | I186: 90 | J186: 93 | K186: 92 | L186: 76 | M186: 30 | N186: 55.33 | R186: 74 | S186: 55 | T186: 65.73 | X186: 61 | Y186: 54 | Z186: 53.67 | AM186: 88 | AN186: 90 | AO186: 89.33
A187: 11G3 | B187: الحادي عشر العام | C187: 89 | D187: 32 | E187: 60.5 | F187: 70 | G187: 13 | H187: 47.94 | I187: 38 | J187: 37 | K187: 49.26 | L187: 74 | M187: 20 | N187: 49.43 | R187: 71 | S187: 20 | T187: 49.18 | X187: 60 | Y187: 47 | Z187: 47.44 | AM187: 92 | AN187: 50 | AO187: 67.18
A188: 11G3 | B188: الحادي عشر العام | C188: 70 | D188: 24 | E188: 60 | F188: 55 | G188: 23 | H188: 48.35 | I188: 14 | J188: 26 | K188: 45.46 | L188: 60 | M188: 35 | N188: 53.33 | R188: 72 | S188: 35 | T188: 57.33 | X188: 63 | Y188: 61 | Z188: 60.5 | AM188: 60 | AN188: 30 | AO188: 60 | AP188: 96.2
A189: 11G3 | B189: الحادي عشر العام | C189: 80 | D189: 64 | E189: 70.09 | F189: 60 | G189: 38 | H189: 55.33 | I189: 56 | J189: 12 | K189: 46.62 | L189: 60 | M189: 15 | N189: 47.44 | R189: 71 | S189: 25 | T189: 50.33 | X189: 60 | Y189: 47 | Z189: 47.44 | AM189: 80 | AN189: 60 | AO189: 68.64
A190: 11G3 | B190: الحادي عشر العام | C190: 70 | D190: 64 | E190: 68.28 | F190: 72 | G190: 35 | H190: 57.33 | I190: 61 | J190: 84 | K190: 76.33 | L190: 80 | M190: 20 | N190: 50 | R190: 82 | S190: 30 | T190: 57.33 | X190: 77 | Y190: 56 | Z190: 55.67 | AM190: 80 | AN190: 65 | AO190: 70.46
A191: 11G3 | B191: الحادي عشر العام | C191: 66 | D191: 32 | E191: 60 | F191: 60 | G191: 29 | H191: 49.76 | I191: 30 | J191: 23 | K191: 46.28 | L191: 68 | M191: 20 | N191: 48.93 | R191: 81 | S191: 30 | T191: 57 | X191: 85 | Y191: 54 | Z191: 53.67 | AM191: 70 | AN191: 40 | AO191: 60
A192: 11G3 | B192: الحادي عشر العام | C192: 73 | D192: 100 | E192: 91 | F192: 70 | G192: 74 | H192: 72.67 | I192: 71 | J192: 84 | K192: 79.67 | L192: 76 | M192: 50 | N192: 64.29 | R192: 82 | S192: 80 | T192: 80.67 | X192: 73 | Y192: 68 | Z192: 68.1 | AM192: 92 | AN192: 95 | AO192: 94
A193: 11G3 | B193: الحادي عشر العام | C193: 88 | D193: 92 | E193: 90.67 | F193: 82 | G193: 83 | H193: 82.67 | I193: 86 | J193: 91 | K193: 89.33 | L193: 100 | M193: 55 | N193: 70.46 | R193: 72 | S193: 55 | T193: 65.37 | X193: 85 | Y193: 64 | Z193: 64.12 | AM193: 100 | AN193: 95 | AO193: 96.67 | AP193: 87.93
A194: 11G3 | B194: الحادي عشر العام | C194: 78 | D194: 76 | E194: 76.67 | F194: 76 | G194: 53 | H194: 65.37 | I194: 55 | J194: 42 | K194: 56.33 | L194: 80 | M194: 50 | N194: 65 | R194: 74 | S194: 35 | T194: 58 | X194: 73 | Y194: 54 | Z194: 54.33 | AM194: 90 | AN194: 80 | AO194: 83.33
A195: 11G3 | B195: الحادي عشر العام | C195: 84 | D195: 100 | E195: 94.67 | F195: 75 | G195: 81 | H195: 79 | I195: 80 | J195: 81 | K195: 80.67 | L195: 80 | M195: 25 | N195: 53.33 | R195: 89 | S195: 90 | T195: 89.67 | X195: 91 | Y195: 65 | Z195: 65.18 | AM195: 90 | AN195: 95 | AO195: 93.33
A196: 11G4 | B196: الحادي عشر العام | C196: 83 | D196: 68 | E196: 73 | F196: 80 | G196: 75 | H196: 76.67 | I196: 86 | J196: 91 | K196: 89.33 | L196: 80 | M196: 55 | N196: 66.82 | R196: 81 | S196: 65 | T196: 70.64 | X196: 69 | Y196: 61 | Z196: 61.49 | AM196: 92 | AN196: 75 | AO196: 80.67
A197: 11G4 | B197: الحادي عشر العام | C197: 66 | D197: 36 | E197: 60 | F197: 68 | G197: 51 | H197: 63.3 | I197: 47 | J197: 33 | K197: 49.35 | L197: 80 | M197: 30 | N197: 56.67 | R197: 84 | S197: 70 | T197: 74.67 | X197: 60 | Y197: 49 | Z197: 49.1 | AM197: 80 | AN197: 85 | AO197: 83.33 | AP197: 60
A198: 11G4 | B198: الحادي عشر العام | C198: 92 | D198: 60 | E198: 70.82 | F198: 78 | G198: 76 | H198: 76.67 | I198: 73 | J198: 79 | K198: 77 | L198: 88 | M198: 50 | N198: 66.46 | R198: 80 | S198: 70 | T198: 73.33 | X198: 92 | Y198: 74 | Z198: 74 | AM198: 95 | AN198: 75 | AO198: 81.67
A199: 11G4 | B199: الحادي عشر العام | C199: 79 | D199: 72 | E199: 74.33 | F199: 66 | G199: 75 | H199: 72 | I199: 75 | J199: 74 | K199: 74.33 | L199: 76 | M199: 45 | N199: 62.64 | R199: 84 | S199: 75 | T199: 78 | X199: 90 | Y199: 71 | Z199: 70.46 | AM199: 92 | AN199: 90 | AO199: 90.67
A200: 11G4 | B200: الحادي عشر العام | C200: 94 | D200: 76 | E200: 82 | F200: 84 | G200: 78 | H200: 80 | I200: 86 | J200: 60 | K200: 69.73 | L200: 86 | M200: 45 | N200: 64.29 | R200: 93 | S200: 70 | T200: 77.67 | X200: 90 | Y200: 62 | Z200: 61.65 | AM200: 92 | AN200: 90 | AO200: 90.67
... 153 more rows
